{"text_format":"1","workbook":"xlsx","n_sheets":3,"sheets":["PLANILLA PARA TXT","Hoja2","Hoja3"],"not_rendered":{"charts":0,"images":1,"macros":1,"external_links":0,"defined_names":0,"comments":0,"pivot_tables":0},"unopened":[],"bounds":{"document_bytes":16777216,"sheet_cells":100000,"rows_first":2000,"rows_last":500,"rows_between":2000,"halvings":0,"cell_chars":16384,"cell_head_chars":4096},"cells_cut":0,"cells_raw":0,"read":"whole","date_system":"1900"}

{"sheet":"PLANILLA PARA TXT","index":0,"n_rows":500,"n_cols":6,"rows_kept":500,"cut":false,"hidden":false,"merged":[[9,0,9,5]]}
[]
[]
[]
[]
[]
[]
[]
[]
[]
["Formulario "]
[]
[null,"Modo de Uso:","1. Ingrese el beneficio, cédula de la persona y monto a descontar"]
[null,null,"2. En los campos beneficio y monto solo debe ir caracteres numéricos (sin separador de miles)"]
[null,null,"3. En el campo cédula solo debe ir  caracteres alfanuméricos (números y letras). No ingrese caracteres especiales como punto(.) ni punto y coma(;)"]
[null,null,"4. El campo Datos para txt se genera de forma automática una vez cargada los 3 campos previos (no borre la fórmula en la celda)"]
[]
[]
[]
[null,"Beneficio","Cédula","Monto","Datos para txt","Longitud"]
[null,null,null,null,{"$f":"rellenar(Tabla1[[#This Row],[Beneficio]],Tabla1[[#This Row],[Cédula]],Tabla1[[#This Row],[Monto]])","v":""},{"$f":"LEN(Tabla1[[#This Row],[Datos para txt]])","v":0}]
[null,null,null,null,{"$f":"rellenar(Tabla1[[#This Row],[Beneficio]],Tabla1[[#This Row],[Cédula]],Tabla1[[#This Row],[Monto]])","v":""},{"$f":"LEN(Tabla1[[#This Row],[Datos para txt]])","v":0}]
[null,null,null,null,{"$f":"rellenar(Tabla1[[#This Row],[Beneficio]],Tabla1[[#This Row],[Cédula]],Tabla1[[#This Row],[Monto]])","v":""},{"$f":"LEN(Tabla1[[#This Row],[Datos para txt]])","v":0}]
[null,null,null,null,{"$f":"rellenar(Tabla1[[#This Row],[Beneficio]],Tabla1[[#This Row],[Cédula]],Tabla1[[#This Row],[Monto]])","v":""},{"$f":"LEN(Tabla1[[#This Row],[Datos para txt]])","v":0}]
[null,null,null,null,{"$f":"rellenar(Tabla1[[#This Row],[Beneficio]],Tabla1[[#This Row],[Cédula]],Tabla1[[#This Row],[Monto]])","v":""},{"$f":"LEN(Tabla1[[#This Row],[Datos para txt]])","v":0}]
[null,null,null,null,{"$f":"rellenar(Tabla1[[#This Row],[Beneficio]],Tabla1[[#This Row],[Cédula]],Tabla1[[#This Row],[Monto]])","v":""},{"$f":"LEN(Tabla1[[#This Row],[Datos para txt]])","v":0}]
[null,null,null,null,{"$f":"rellenar(Tabla1[[#This Row],[Beneficio]],Tabla1[[#This Row],[Cédula]],Tabla1[[#This Row],[Monto]])","v":""},{"$f":"LEN(Tabla1[[#This Row],[Datos para txt]])","v":0}]
[null,null,null,null,{"$f":"rellenar(Tabla1[[#This Row],[Beneficio]],Tabla1[[#This Row],[Cédula]],Tabla1[[#This Row],[Monto]])","v":""},{"$f":"LEN(Tabla1[[#This Row],[Datos para txt]])","v":0}]
[null,null,null,null,{"$f":"rellenar(Tabla1[[#This Row],[Beneficio]],Tabla1[[#This Row],[Cédula]],Tabla1[[#This Row],[Monto]])","v":""},{"$f":"LEN(Tabla1[[#This Row],[Datos para txt]])","v":0}]
[null,null,null,null,{"$f":"rellenar(Tabla1[[#This Row],[Beneficio]],Tabla1[[#This Row],[Cédula]],Tabla1[[#This Row],[Monto]])","v":""},{"$f":"LEN(Tabla1[[#This Row],[Datos para txt]])","v":0}]
[null,null,null,null,{"$f":"rellenar(Tabla1[[#This Row],[Beneficio]],Tabla1[[#This Row],[Cédula]],Tabla1[[#This Row],[Monto]])","v":""},{"$f":"LEN(Tabla1[[#This Row],[Datos para txt]])","v":0}]
[null,null,null,null,{"$f":"rellenar(Tabla1[[#This Row],[Beneficio]],Tabla1[[#This Row],[Cédula]],Tabla1[[#This Row],[Monto]])","v":""},{"$f":"LEN(Tabla1[[#This Row],[Datos para txt]])","v":0}]
[null,null,null,null,{"$f":"rellenar(Tabla1[[#This Row],[Beneficio]],Tabla1[[#This Row],[Cédula]],Tabla1[[#This Row],[Monto]])","v":""},{"$f":"LEN(Tabla1[[#This Row],[Datos para txt]])","v":0}]
[null,null,null,null,{"$f":"rellenar(Tabla1[[#This Row],[Beneficio]],Tabla1[[#This Row],[Cédula]],Tabla1[[#This Row],[Monto]])","v":""},{"$f":"LEN(Tabla1[[#This Row],[Datos para txt]])","v":0}]
[null,null,null,null,{"$f":"rellenar(Tabla1[[#This Row],[Beneficio]],Tabla1[[#This Row],[Cédula]],Tabla1[[#This Row],[Monto]])","v":""},{"$f":"LEN(Tabla1[[#This Row],[Datos para txt]])","v":0}]
[null,null,null,null,{"$f":"rellenar(Tabla1[[#This Row],[Beneficio]],Tabla1[[#This Row],[Cédula]],Tabla1[[#This Row],[Monto]])","v":""},{"$f":"LEN(Tabla1[[#This Row],[Datos para txt]])","v":0}]
[null,null,null,null,{"$f":"rellenar(Tabla1[[#This Row],[Beneficio]],Tabla1[[#This Row],[Cédula]],Tabla1[[#This Row],[Monto]])","v":""},{"$f":"LEN(Tabla1[[#This Row],[Datos para txt]])","v":0}]
[null,null,null,null,{"$f":"rellenar(Tabla1[[#This Row],[Beneficio]],Tabla1[[#This Row],[Cédula]],Tabla1[[#This Row],[Monto]])","v":""},{"$f":"LEN(Tabla1[[#This Row],[Datos para txt]])","v":0}]
[null,null,null,null,{"$f":"rellenar(Tabla1[[#This Row],[Beneficio]],Tabla1[[#This Row],[Cédula]],Tabla1[[#This Row],[Monto]])","v":""},{"$f":"LEN(Tabla1[[#This Row],[Datos para txt]])","v":0}]
[null,null,null,null,{"$f":"rellenar(Tabla1[[#This Row],[Beneficio]],Tabla1[[#This Row],[Cédula]],Tabla1[[#This Row],[Monto]])","v":""},{"$f":"LEN(Tabla1[[#This Row],[Datos para txt]])","v":0}]
[null,null,null,null,{"$f":"rellenar(Tabla1[[#This Row],[Beneficio]],Tabla1[[#This Row],[Cédula]],Tabla1[[#This Row],[Monto]])","v":""},{"$f":"LEN(Tabla1[[#This Row],[Datos para txt]])","v":0}]
[null,null,null,null,{"$f":"rellenar(Tabla1[[#This Row],[Beneficio]],Tabla1[[#This Row],[Cédula]],Tabla1[[#This Row],[Monto]])","v":""},{"$f":"LEN(Tabla1[[#This Row],[Datos para txt]])","v":0}]
[null,null,null,null,{"$f":"rellenar(Tabla1[[#This Row],[Beneficio]],Tabla1[[#This Row],[Cédula]],Tabla1[[#This Row],[Monto]])","v":""},{"$f":"LEN(Tabla1[[#This Row],[Datos para txt]])","v":0}]
[null,null,null,null,{"$f":"rellenar(Tabla1[[#This Row],[Beneficio]],Tabla1[[#This Row],[Cédula]],Tabla1[[#This Row],[Monto]])","v":""},{"$f":"LEN(Tabla1[[#This Row],[Datos para txt]])","v":0}]
[null,null,null,null,{"$f":"rellenar(Tabla1[[#This Row],[Beneficio]],Tabla1[[#This Row],[Cédula]],Tabla1[[#This Row],[Monto]])","v":""},{"$f":"LEN(Tabla1[[#This Row],[Datos para txt]])","v":0}]
[null,null,null,null,{"$f":"rellenar(Tabla1[[#This Row],[Beneficio]],Tabla1[[#This Row],[Cédula]],Tabla1[[#This Row],[Monto]])","v":""},{"$f":"LEN(Tabla1[[#This Row],[Datos para txt]])","v":0}]
[null,null,null,null,{"$f":"rellenar(Tabla1[[#This Row],[Beneficio]],Tabla1[[#This Row],[Cédula]],Tabla1[[#This Row],[Monto]])","v":""},{"$f":"LEN(Tabla1[[#This Row],[Datos para txt]])","v":0}]
[null,null,null,null,{"$f":"rellenar(Tabla1[[#This Row],[Beneficio]],Tabla1[[#This Row],[Cédula]],Tabla1[[#This Row],[Monto]])","v":""},{"$f":"LEN(Tabla1[[#This Row],[Datos para txt]])","v":0}]
[null,null,null,null,{"$f":"rellenar(Tabla1[[#This Row],[Beneficio]],Tabla1[[#This Row],[Cédula]],Tabla1[[#This Row],[Monto]])","v":""},{"$f":"LEN(Tabla1[[#This Row],[Datos para txt]])","v":0}]
[null,null,null,null,{"$f":"rellenar(Tabla1[[#This Row],[Beneficio]],Tabla1[[#This Row],[Cédula]],Tabla1[[#This Row],[Monto]])","v":""},{"$f":"LEN(Tabla1[[#This Row],[Datos para txt]])","v":0}]
[null,null,null,null,{"$f":"rellenar(Tabla1[[#This Row],[Beneficio]],Tabla1[[#This Row],[Cédula]],Tabla1[[#This Row],[Monto]])","v":""},{"$f":"LEN(Tabla1[[#This Row],[Datos para txt]])","v":0}]
[null,null,null,null,{"$f":"rellenar(Tabla1[[#This Row],[Beneficio]],Tabla1[[#This Row],[Cédula]],Tabla1[[#This Row],[Monto]])","v":""},{"$f":"LEN(Tabla1[[#This Row],[Datos para txt]])","v":0}]
[null,null,null,null,{"$f":"rellenar(Tabla1[[#This Row],[Beneficio]],Tabla1[[#This Row],[Cédula]],Tabla1[[#This Row],[Monto]])","v":""},{"$f":"LEN(Tabla1[[#This Row],[Datos para txt]])","v":0}]
[null,null,null,null,{"$f":"rellenar(Tabla1[[#This Row],[Beneficio]],Tabla1[[#This Row],[Cédula]],Tabla1[[#This Row],[Monto]])","v":""},{"$f":"LEN(Tabla1[[#This Row],[Datos para txt]])","v":0}]
[null,null,null,null,{"$f":"rellenar(Tabla1[[#This Row],[Beneficio]],Tabla1[[#This Row],[Cédula]],Tabla1[[#This Row],[Monto]])","v":""},{"$f":"LEN(Tabla1[[#This Row],[Datos para txt]])","v":0}]
[null,null,null,null,{"$f":"rellenar(Tabla1[[#This Row],[Beneficio]],Tabla1[[#This Row],[Cédula]],Tabla1[[#This Row],[Monto]])","v":""},{"$f":"LEN(Tabla1[[#This Row],[Datos para txt]])","v":0}]
[null,null,null,null,{"$f":"rellenar(Tabla1[[#This Row],[Beneficio]],Tabla1[[#This Row],[Cédula]],Tabla1[[#This Row],[Monto]])","v":""},{"$f":"LEN(Tabla1[[#This Row],[Datos para txt]])","v":0}]
[null,null,null,null,{"$f":"rellenar(Tabla1[[#This Row],[Beneficio]],Tabla1[[#This Row],[Cédula]],Tabla1[[#This Row],[Monto]])","v":""},{"$f":"LEN(Tabla1[[#This Row],[Datos para txt]])","v":0}]
[null,null,null,null,{"$f":"rellenar(Tabla1[[#This Row],[Beneficio]],Tabla1[[#This Row],[Cédula]],Tabla1[[#This Row],[Monto]])","v":""},{"$f":"LEN(Tabla1[[#This Row],[Datos para txt]])","v":0}]
[null,null,null,null,{"$f":"rellenar(Tabla1[[#This Row],[Beneficio]],Tabla1[[#This Row],[Cédula]],Tabla1[[#This Row],[Monto]])","v":""},{"$f":"LEN(Tabla1[[#This Row],[Datos para txt]])","v":0}]
[null,null,null,null,{"$f":"rellenar(Tabla1[[#This Row],[Beneficio]],Tabla1[[#This Row],[Cédula]],Tabla1[[#This Row],[Monto]])","v":""},{"$f":"LEN(Tabla1[[#This Row],[Datos para txt]])","v":0}]
[null,null,null,null,{"$f":"rellenar(Tabla1[[#This Row],[Beneficio]],Tabla1[[#This Row],[Cédula]],Tabla1[[#This Row],[Monto]])","v":""},{"$f":"LEN(Tabla1[[#This Row],[Datos para txt]])","v":0}]
[null,null,null,null,{"$f":"rellenar(Tabla1[[#This Row],[Beneficio]],Tabla1[[#This Row],[Cédula]],Tabla1[[#This Row],[Monto]])","v":""},{"$f":"LEN(Tabla1[[#This Row],[Datos para txt]])","v":0}]
[null,null,null,null,{"$f":"rellenar(Tabla1[[#This Row],[Beneficio]],Tabla1[[#This Row],[Cédula]],Tabla1[[#This Row],[Monto]])","v":""},{"$f":"LEN(Tabla1[[#This Row],[Datos para txt]])","v":0}]
[null,null,null,null,{"$f":"rellenar(Tabla1[[#This Row],[Beneficio]],Tabla1[[#This Row],[Cédula]],Tabla1[[#This Row],[Monto]])","v":""},{"$f":"LEN(Tabla1[[#This Row],[Datos para txt]])","v":0}]
[null,null,null,null,{"$f":"rellenar(Tabla1[[#This Row],[Beneficio]],Tabla1[[#This Row],[Cédula]],Tabla1[[#This Row],[Monto]])","v":""},{"$f":"LEN(Tabla1[[#This Row],[Datos para txt]])","v":0}]
[null,null,null,null,{"$f":"rellenar(Tabla1[[#This Row],[Beneficio]],Tabla1[[#This Row],[Cédula]],Tabla1[[#This Row],[Monto]])","v":""},{"$f":"LEN(Tabla1[[#This Row],[Datos para txt]])","v":0}]
[null,null,null,null,{"$f":"rellenar(Tabla1[[#This Row],[Beneficio]],Tabla1[[#This Row],[Cédula]],Tabla1[[#This Row],[Monto]])","v":""},{"$f":"LEN(Tabla1[[#This Row],[Datos para txt]])","v":0}]
[null,null,null,null,{"$f":"rellenar(Tabla1[[#This Row],[Beneficio]],Tabla1[[#This Row],[Cédula]],Tabla1[[#This Row],[Monto]])","v":""},{"$f":"LEN(Tabla1[[#This Row],[Datos para txt]])","v":0}]
[null,null,null,null,{"$f":"rellenar(Tabla1[[#This Row],[Beneficio]],Tabla1[[#This Row],[Cédula]],Tabla1[[#This Row],[Monto]])","v":""},{"$f":"LEN(Tabla1[[#This Row],[Datos para txt]])","v":0}]
[null,null,null,null,{"$f":"rellenar(Tabla1[[#This Row],[Beneficio]],Tabla1[[#This Row],[Cédula]],Tabla1[[#This Row],[Monto]])","v":""},{"$f":"LEN(Tabla1[[#This Row],[Datos para txt]])","v":0}]
[null,null,null,null,{"$f":"rellenar(Tabla1[[#This Row],[Beneficio]],Tabla1[[#This Row],[Cédula]],Tabla1[[#This Row],[Monto]])","v":""},{"$f":"LEN(Tabla1[[#This Row],[Datos para txt]])","v":0}]
[null,null,null,null,{"$f":"rellenar(Tabla1[[#This Row],[Beneficio]],Tabla1[[#This Row],[Cédula]],Tabla1[[#This Row],[Monto]])","v":""},{"$f":"LEN(Tabla1[[#This Row],[Datos para txt]])","v":0}]
[null,null,null,null,{"$f":"rellenar(Tabla1[[#This Row],[Beneficio]],Tabla1[[#This Row],[Cédula]],Tabla1[[#This Row],[Monto]])","v":""},{"$f":"LEN(Tabla1[[#This Row],[Datos para txt]])","v":0}]
[null,null,null,null,{"$f":"rellenar(Tabla1[[#This Row],[Beneficio]],Tabla1[[#This Row],[Cédula]],Tabla1[[#This Row],[Monto]])","v":""},{"$f":"LEN(Tabla1[[#This Row],[Datos para txt]])","v":0}]
[null,null,null,null,{"$f":"rellenar(Tabla1[[#This Row],[Beneficio]],Tabla1[[#This Row],[Cédula]],Tabla1[[#This Row],[Monto]])","v":""},{"$f":"LEN(Tabla1[[#This Row],[Datos para txt]])","v":0}]
[null,null,null,null,{"$f":"rellenar(Tabla1[[#This Row],[Beneficio]],Tabla1[[#This Row],[Cédula]],Tabla1[[#This Row],[Monto]])","v":""},{"$f":"LEN(Tabla1[[#This Row],[Datos para txt]])","v":0}]
[null,null,null,null,{"$f":"rellenar(Tabla1[[#This Row],[Beneficio]],Tabla1[[#This Row],[Cédula]],Tabla1[[#This Row],[Monto]])","v":""},{"$f":"LEN(Tabla1[[#This Row],[Datos para txt]])","v":0}]
[null,null,null,null,{"$f":"rellenar(Tabla1[[#This Row],[Beneficio]],Tabla1[[#This Row],[Cédula]],Tabla1[[#This Row],[Monto]])","v":""},{"$f":"LEN(Tabla1[[#This Row],[Datos para txt]])","v":0}]
[null,null,null,null,{"$f":"rellenar(Tabla1[[#This Row],[Beneficio]],Tabla1[[#This Row],[Cédula]],Tabla1[[#This Row],[Monto]])","v":""},{"$f":"LEN(Tabla1[[#This Row],[Datos para txt]])","v":0}]
[null,null,null,null,{"$f":"rellenar(Tabla1[[#This Row],[Beneficio]],Tabla1[[#This Row],[Cédula]],Tabla1[[#This Row],[Monto]])","v":""},{"$f":"LEN(Tabla1[[#This Row],[Datos para txt]])","v":0}]
[null,null,null,null,{"$f":"rellenar(Tabla1[[#This Row],[Beneficio]],Tabla1[[#This Row],[Cédula]],Tabla1[[#This Row],[Monto]])","v":""},{"$f":"LEN(Tabla1[[#This Row],[Datos para txt]])","v":0}]
[null,null,null,null,{"$f":"rellenar(Tabla1[[#This Row],[Beneficio]],Tabla1[[#This Row],[Cédula]],Tabla1[[#This Row],[Monto]])","v":""},{"$f":"LEN(Tabla1[[#This Row],[Datos para txt]])","v":0}]
[null,null,null,null,{"$f":"rellenar(Tabla1[[#This Row],[Beneficio]],Tabla1[[#This Row],[Cédula]],Tabla1[[#This Row],[Monto]])","v":""},{"$f":"LEN(Tabla1[[#This Row],[Datos para txt]])","v":0}]
[null,null,null,null,{"$f":"rellenar(Tabla1[[#This Row],[Beneficio]],Tabla1[[#This Row],[Cédula]],Tabla1[[#This Row],[Monto]])","v":""},{"$f":"LEN(Tabla1[[#This Row],[Datos para txt]])","v":0}]
[null,null,null,null,{"$f":"rellenar(Tabla1[[#This Row],[Beneficio]],Tabla1[[#This Row],[Cédula]],Tabla1[[#This Row],[Monto]])","v":""},{"$f":"LEN(Tabla1[[#This Row],[Datos para txt]])","v":0}]
[null,null,null,null,{"$f":"rellenar(Tabla1[[#This Row],[Beneficio]],Tabla1[[#This Row],[Cédula]],Tabla1[[#This Row],[Monto]])","v":""},{"$f":"LEN(Tabla1[[#This Row],[Datos para txt]])","v":0}]
[null,null,null,null,{"$f":"rellenar(Tabla1[[#This Row],[Beneficio]],Tabla1[[#This Row],[Cédula]],Tabla1[[#This Row],[Monto]])","v":""},{"$f":"LEN(Tabla1[[#This Row],[Datos para txt]])","v":0}]
[null,null,null,null,{"$f":"rellenar(Tabla1[[#This Row],[Beneficio]],Tabla1[[#This Row],[Cédula]],Tabla1[[#This Row],[Monto]])","v":""},{"$f":"LEN(Tabla1[[#This Row],[Datos para txt]])","v":0}]
[null,null,null,null,{"$f":"rellenar(Tabla1[[#This Row],[Beneficio]],Tabla1[[#This Row],[Cédula]],Tabla1[[#This Row],[Monto]])","v":""},{"$f":"LEN(Tabla1[[#This Row],[Datos para txt]])","v":0}]
[null,null,null,null,{"$f":"rellenar(Tabla1[[#This Row],[Beneficio]],Tabla1[[#This Row],[Cédula]],Tabla1[[#This Row],[Monto]])","v":""},{"$f":"LEN(Tabla1[[#This Row],[Datos para txt]])","v":0}]
[null,null,null,null,{"$f":"rellenar(Tabla1[[#This Row],[Beneficio]],Tabla1[[#This Row],[Cédula]],Tabla1[[#This Row],[Monto]])","v":""},{"$f":"LEN(Tabla1[[#This Row],[Datos para txt]])","v":0}]
[null,null,null,null,{"$f":"rellenar(Tabla1[[#This Row],[Beneficio]],Tabla1[[#This Row],[Cédula]],Tabla1[[#This Row],[Monto]])","v":""},{"$f":"LEN(Tabla1[[#This Row],[Datos para txt]])","v":0}]
[null,null,null,null,{"$f":"rellenar(Tabla1[[#This Row],[Beneficio]],Tabla1[[#This Row],[Cédula]],Tabla1[[#This Row],[Monto]])","v":""},{"$f":"LEN(Tabla1[[#This Row],[Datos para txt]])","v":0}]
[null,null,null,null,{"$f":"rellenar(Tabla1[[#This Row],[Beneficio]],Tabla1[[#This Row],[Cédula]],Tabla1[[#This Row],[Monto]])","v":""},{"$f":"LEN(Tabla1[[#This Row],[Datos para txt]])","v":0}]
[null,null,null,null,{"$f":"rellenar(Tabla1[[#This Row],[Beneficio]],Tabla1[[#This Row],[Cédula]],Tabla1[[#This Row],[Monto]])","v":""},{"$f":"LEN(Tabla1[[#This Row],[Datos para txt]])","v":0}]
[null,null,null,null,{"$f":"rellenar(Tabla1[[#This Row],[Beneficio]],Tabla1[[#This Row],[Cédula]],Tabla1[[#This Row],[Monto]])","v":""},{"$f":"LEN(Tabla1[[#This Row],[Datos para txt]])","v":0}]
[null,null,null,null,{"$f":"rellenar(Tabla1[[#This Row],[Beneficio]],Tabla1[[#This Row],[Cédula]],Tabla1[[#This Row],[Monto]])","v":""},{"$f":"LEN(Tabla1[[#This Row],[Datos para txt]])","v":0}]
[null,null,null,null,{"$f":"rellenar(Tabla1[[#This Row],[Beneficio]],Tabla1[[#This Row],[Cédula]],Tabla1[[#This Row],[Monto]])","v":""},{"$f":"LEN(Tabla1[[#This Row],[Datos para txt]])","v":0}]
[null,null,null,null,{"$f":"rellenar(Tabla1[[#This Row],[Beneficio]],Tabla1[[#This Row],[Cédula]],Tabla1[[#This Row],[Monto]])","v":""},{"$f":"LEN(Tabla1[[#This Row],[Datos para txt]])","v":0}]
[null,null,null,null,{"$f":"rellenar(Tabla1[[#This Row],[Beneficio]],Tabla1[[#This Row],[Cédula]],Tabla1[[#This Row],[Monto]])","v":""},{"$f":"LEN(Tabla1[[#This Row],[Datos para txt]])","v":0}]
[null,null,null,null,{"$f":"rellenar(Tabla1[[#This Row],[Beneficio]],Tabla1[[#This Row],[Cédula]],Tabla1[[#This Row],[Monto]])","v":""},{"$f":"LEN(Tabla1[[#This Row],[Datos para txt]])","v":0}]
[null,null,null,null,{"$f":"rellenar(Tabla1[[#This Row],[Beneficio]],Tabla1[[#This Row],[Cédula]],Tabla1[[#This Row],[Monto]])","v":""},{"$f":"LEN(Tabla1[[#This Row],[Datos para txt]])","v":0}]
[null,null,null,null,{"$f":"rellenar(Tabla1[[#This Row],[Beneficio]],Tabla1[[#This Row],[Cédula]],Tabla1[[#This Row],[Monto]])","v":""},{"$f":"LEN(Tabla1[[#This Row],[Datos para txt]])","v":0}]
[null,null,null,null,{"$f":"rellenar(Tabla1[[#This Row],[Beneficio]],Tabla1[[#This Row],[Cédula]],Tabla1[[#This Row],[Monto]])","v":""},{"$f":"LEN(Tabla1[[#This Row],[Datos para txt]])","v":0}]
[null,null,null,null,{"$f":"rellenar(Tabla1[[#This Row],[Beneficio]],Tabla1[[#This Row],[Cédula]],Tabla1[[#This Row],[Monto]])","v":""},{"$f":"LEN(Tabla1[[#This Row],[Datos para txt]])","v":0}]
[null,null,null,null,{"$f":"rellenar(Tabla1[[#This Row],[Beneficio]],Tabla1[[#This Row],[Cédula]],Tabla1[[#This Row],[Monto]])","v":""},{"$f":"LEN(Tabla1[[#This Row],[Datos para txt]])","v":0}]
[null,null,null,null,{"$f":"rellenar(Tabla1[[#This Row],[Beneficio]],Tabla1[[#This Row],[Cédula]],Tabla1[[#This Row],[Monto]])","v":""},{"$f":"LEN(Tabla1[[#This Row],[Datos para txt]])","v":0}]
[null,null,null,null,{"$f":"rellenar(Tabla1[[#This Row],[Beneficio]],Tabla1[[#This Row],[Cédula]],Tabla1[[#This Row],[Monto]])","v":""},{"$f":"LEN(Tabla1[[#This Row],[Datos para txt]])","v":0}]
[null,null,null,null,{"$f":"rellenar(Tabla1[[#This Row],[Beneficio]],Tabla1[[#This Row],[Cédula]],Tabla1[[#This Row],[Monto]])","v":""},{"$f":"LEN(Tabla1[[#This Row],[Datos para txt]])","v":0}]
[null,null,null,null,{"$f":"rellenar(Tabla1[[#This Row],[Beneficio]],Tabla1[[#This Row],[Cédula]],Tabla1[[#This Row],[Monto]])","v":""},{"$f":"LEN(Tabla1[[#This Row],[Datos para txt]])","v":0}]
[null,null,null,null,{"$f":"rellenar(Tabla1[[#This Row],[Beneficio]],Tabla1[[#This Row],[Cédula]],Tabla1[[#This Row],[Monto]])","v":""},{"$f":"LEN(Tabla1[[#This Row],[Datos para txt]])","v":0}]
[null,null,null,null,{"$f":"rellenar(Tabla1[[#This Row],[Beneficio]],Tabla1[[#This Row],[Cédula]],Tabla1[[#This Row],[Monto]])","v":""},{"$f":"LEN(Tabla1[[#This Row],[Datos para txt]])","v":0}]
[null,null,null,null,{"$f":"rellenar(Tabla1[[#This Row],[Beneficio]],Tabla1[[#This Row],[Cédula]],Tabla1[[#This Row],[Monto]])","v":""},{"$f":"LEN(Tabla1[[#This Row],[Datos para txt]])","v":0}]
[null,null,null,null,{"$f":"rellenar(Tabla1[[#This Row],[Beneficio]],Tabla1[[#This Row],[Cédula]],Tabla1[[#This Row],[Monto]])","v":""},{"$f":"LEN(Tabla1[[#This Row],[Datos para txt]])","v":0}]
[null,null,null,null,{"$f":"rellenar(Tabla1[[#This Row],[Beneficio]],Tabla1[[#This Row],[Cédula]],Tabla1[[#This Row],[Monto]])","v":""},{"$f":"LEN(Tabla1[[#This Row],[Datos para txt]])","v":0}]
[null,null,null,null,{"$f":"rellenar(Tabla1[[#This Row],[Beneficio]],Tabla1[[#This Row],[Cédula]],Tabla1[[#This Row],[Monto]])","v":""},{"$f":"LEN(Tabla1[[#This Row],[Datos para txt]])","v":0}]
[null,null,null,null,{"$f":"rellenar(Tabla1[[#This Row],[Beneficio]],Tabla1[[#This Row],[Cédula]],Tabla1[[#This Row],[Monto]])","v":""},{"$f":"LEN(Tabla1[[#This Row],[Datos para txt]])","v":0}]
[null,null,null,null,{"$f":"rellenar(Tabla1[[#This Row],[Beneficio]],Tabla1[[#This Row],[Cédula]],Tabla1[[#This Row],[Monto]])","v":""},{"$f":"LEN(Tabla1[[#This Row],[Datos para txt]])","v":0}]
[null,null,null,null,{"$f":"rellenar(Tabla1[[#This Row],[Beneficio]],Tabla1[[#This Row],[Cédula]],Tabla1[[#This Row],[Monto]])","v":""},{"$f":"LEN(Tabla1[[#This Row],[Datos para txt]])","v":0}]
[null,null,null,null,{"$f":"rellenar(Tabla1[[#This Row],[Beneficio]],Tabla1[[#This Row],[Cédula]],Tabla1[[#This Row],[Monto]])","v":""},{"$f":"LEN(Tabla1[[#This Row],[Datos para txt]])","v":0}]
[null,null,null,null,{"$f":"rellenar(Tabla1[[#This Row],[Beneficio]],Tabla1[[#This Row],[Cédula]],Tabla1[[#This Row],[Monto]])","v":""},{"$f":"LEN(Tabla1[[#This Row],[Datos para txt]])","v":0}]
[null,null,null,null,{"$f":"rellenar(Tabla1[[#This Row],[Beneficio]],Tabla1[[#This Row],[Cédula]],Tabla1[[#This Row],[Monto]])","v":""},{"$f":"LEN(Tabla1[[#This Row],[Datos para txt]])","v":0}]
[null,null,null,null,{"$f":"rellenar(Tabla1[[#This Row],[Beneficio]],Tabla1[[#This Row],[Cédula]],Tabla1[[#This Row],[Monto]])","v":""},{"$f":"LEN(Tabla1[[#This Row],[Datos para txt]])","v":0}]
[null,null,null,null,{"$f":"rellenar(Tabla1[[#This Row],[Beneficio]],Tabla1[[#This Row],[Cédula]],Tabla1[[#This Row],[Monto]])","v":""},{"$f":"LEN(Tabla1[[#This Row],[Datos para txt]])","v":0}]
[null,null,null,null,{"$f":"rellenar(Tabla1[[#This Row],[Beneficio]],Tabla1[[#This Row],[Cédula]],Tabla1[[#This Row],[Monto]])","v":""},{"$f":"LEN(Tabla1[[#This Row],[Datos para txt]])","v":0}]
[null,null,null,null,{"$f":"rellenar(Tabla1[[#This Row],[Beneficio]],Tabla1[[#This Row],[Cédula]],Tabla1[[#This Row],[Monto]])","v":""},{"$f":"LEN(Tabla1[[#This Row],[Datos para txt]])","v":0}]
[null,null,null,null,{"$f":"rellenar(Tabla1[[#This Row],[Beneficio]],Tabla1[[#This Row],[Cédula]],Tabla1[[#This Row],[Monto]])","v":""},{"$f":"LEN(Tabla1[[#This Row],[Datos para txt]])","v":0}]
[null,null,null,null,{"$f":"rellenar(Tabla1[[#This Row],[Beneficio]],Tabla1[[#This Row],[Cédula]],Tabla1[[#This Row],[Monto]])","v":""},{"$f":"LEN(Tabla1[[#This Row],[Datos para txt]])","v":0}]
[null,null,null,null,{"$f":"rellenar(Tabla1[[#This Row],[Beneficio]],Tabla1[[#This Row],[Cédula]],Tabla1[[#This Row],[Monto]])","v":""},{"$f":"LEN(Tabla1[[#This Row],[Datos para txt]])","v":0}]
[null,null,null,null,{"$f":"rellenar(Tabla1[[#This Row],[Beneficio]],Tabla1[[#This Row],[Cédula]],Tabla1[[#This Row],[Monto]])","v":""},{"$f":"LEN(Tabla1[[#This Row],[Datos para txt]])","v":0}]
[null,null,null,null,{"$f":"rellenar(Tabla1[[#This Row],[Beneficio]],Tabla1[[#This Row],[Cédula]],Tabla1[[#This Row],[Monto]])","v":""},{"$f":"LEN(Tabla1[[#This Row],[Datos para txt]])","v":0}]
[null,null,null,null,{"$f":"rellenar(Tabla1[[#This Row],[Beneficio]],Tabla1[[#This Row],[Cédula]],Tabla1[[#This Row],[Monto]])","v":""},{"$f":"LEN(Tabla1[[#This Row],[Datos para txt]])","v":0}]
[null,null,null,null,{"$f":"rellenar(Tabla1[[#This Row],[Beneficio]],Tabla1[[#This Row],[Cédula]],Tabla1[[#This Row],[Monto]])","v":""},{"$f":"LEN(Tabla1[[#This Row],[Datos para txt]])","v":0}]
[null,null,null,null,{"$f":"rellenar(Tabla1[[#This Row],[Beneficio]],Tabla1[[#This Row],[Cédula]],Tabla1[[#This Row],[Monto]])","v":""},{"$f":"LEN(Tabla1[[#This Row],[Datos para txt]])","v":0}]
[null,null,null,null,{"$f":"rellenar(Tabla1[[#This Row],[Beneficio]],Tabla1[[#This Row],[Cédula]],Tabla1[[#This Row],[Monto]])","v":""},{"$f":"LEN(Tabla1[[#This Row],[Datos para txt]])","v":0}]
[null,null,null,null,{"$f":"rellenar(Tabla1[[#This Row],[Beneficio]],Tabla1[[#This Row],[Cédula]],Tabla1[[#This Row],[Monto]])","v":""},{"$f":"LEN(Tabla1[[#This Row],[Datos para txt]])","v":0}]
[null,null,null,null,{"$f":"rellenar(Tabla1[[#This Row],[Beneficio]],Tabla1[[#This Row],[Cédula]],Tabla1[[#This Row],[Monto]])","v":""},{"$f":"LEN(Tabla1[[#This Row],[Datos para txt]])","v":0}]
[null,null,null,null,{"$f":"rellenar(Tabla1[[#This Row],[Beneficio]],Tabla1[[#This Row],[Cédula]],Tabla1[[#This Row],[Monto]])","v":""},{"$f":"LEN(Tabla1[[#This Row],[Datos para txt]])","v":0}]
[null,null,null,null,{"$f":"rellenar(Tabla1[[#This Row],[Beneficio]],Tabla1[[#This Row],[Cédula]],Tabla1[[#This Row],[Monto]])","v":""},{"$f":"LEN(Tabla1[[#This Row],[Datos para txt]])","v":0}]
[null,null,null,null,{"$f":"rellenar(Tabla1[[#This Row],[Beneficio]],Tabla1[[#This Row],[Cédula]],Tabla1[[#This Row],[Monto]])","v":""},{"$f":"LEN(Tabla1[[#This Row],[Datos para txt]])","v":0}]
[null,null,null,null,{"$f":"rellenar(Tabla1[[#This Row],[Beneficio]],Tabla1[[#This Row],[Cédula]],Tabla1[[#This Row],[Monto]])","v":""},{"$f":"LEN(Tabla1[[#This Row],[Datos para txt]])","v":0}]
[null,null,null,null,{"$f":"rellenar(Tabla1[[#This Row],[Beneficio]],Tabla1[[#This Row],[Cédula]],Tabla1[[#This Row],[Monto]])","v":""},{"$f":"LEN(Tabla1[[#This Row],[Datos para txt]])","v":0}]
[null,null,null,null,{"$f":"rellenar(Tabla1[[#This Row],[Beneficio]],Tabla1[[#This Row],[Cédula]],Tabla1[[#This Row],[Monto]])","v":""},{"$f":"LEN(Tabla1[[#This Row],[Datos para txt]])","v":0}]
[null,null,null,null,{"$f":"rellenar(Tabla1[[#This Row],[Beneficio]],Tabla1[[#This Row],[Cédula]],Tabla1[[#This Row],[Monto]])","v":""},{"$f":"LEN(Tabla1[[#This Row],[Datos para txt]])","v":0}]
[null,null,null,null,{"$f":"rellenar(Tabla1[[#This Row],[Beneficio]],Tabla1[[#This Row],[Cédula]],Tabla1[[#This Row],[Monto]])","v":""},{"$f":"LEN(Tabla1[[#This Row],[Datos para txt]])","v":0}]
[null,null,null,null,{"$f":"rellenar(Tabla1[[#This Row],[Beneficio]],Tabla1[[#This Row],[Cédula]],Tabla1[[#This Row],[Monto]])","v":""},{"$f":"LEN(Tabla1[[#This Row],[Datos para txt]])","v":0}]
[null,null,null,null,{"$f":"rellenar(Tabla1[[#This Row],[Beneficio]],Tabla1[[#This Row],[Cédula]],Tabla1[[#This Row],[Monto]])","v":""},{"$f":"LEN(Tabla1[[#This Row],[Datos para txt]])","v":0}]
[null,null,null,null,{"$f":"rellenar(Tabla1[[#This Row],[Beneficio]],Tabla1[[#This Row],[Cédula]],Tabla1[[#This Row],[Monto]])","v":""},{"$f":"LEN(Tabla1[[#This Row],[Datos para txt]])","v":0}]
[null,null,null,null,{"$f":"rellenar(Tabla1[[#This Row],[Beneficio]],Tabla1[[#This Row],[Cédula]],Tabla1[[#This Row],[Monto]])","v":""},{"$f":"LEN(Tabla1[[#This Row],[Datos para txt]])","v":0}]
[null,null,null,null,{"$f":"rellenar(Tabla1[[#This Row],[Beneficio]],Tabla1[[#This Row],[Cédula]],Tabla1[[#This Row],[Monto]])","v":""},{"$f":"LEN(Tabla1[[#This Row],[Datos para txt]])","v":0}]
[null,null,null,null,{"$f":"rellenar(Tabla1[[#This Row],[Beneficio]],Tabla1[[#This Row],[Cédula]],Tabla1[[#This Row],[Monto]])","v":""},{"$f":"LEN(Tabla1[[#This Row],[Datos para txt]])","v":0}]
[null,null,null,null,{"$f":"rellenar(Tabla1[[#This Row],[Beneficio]],Tabla1[[#This Row],[Cédula]],Tabla1[[#This Row],[Monto]])","v":""},{"$f":"LEN(Tabla1[[#This Row],[Datos para txt]])","v":0}]
[null,null,null,null,{"$f":"rellenar(Tabla1[[#This Row],[Beneficio]],Tabla1[[#This Row],[Cédula]],Tabla1[[#This Row],[Monto]])","v":""},{"$f":"LEN(Tabla1[[#This Row],[Datos para txt]])","v":0}]
[null,null,null,null,{"$f":"rellenar(Tabla1[[#This Row],[Beneficio]],Tabla1[[#This Row],[Cédula]],Tabla1[[#This Row],[Monto]])","v":""},{"$f":"LEN(Tabla1[[#This Row],[Datos para txt]])","v":0}]
[null,null,null,null,{"$f":"rellenar(Tabla1[[#This Row],[Beneficio]],Tabla1[[#This Row],[Cédula]],Tabla1[[#This Row],[Monto]])","v":""},{"$f":"LEN(Tabla1[[#This Row],[Datos para txt]])","v":0}]
[null,null,null,null,{"$f":"rellenar(Tabla1[[#This Row],[Beneficio]],Tabla1[[#This Row],[Cédula]],Tabla1[[#This Row],[Monto]])","v":""},{"$f":"LEN(Tabla1[[#This Row],[Datos para txt]])","v":0}]
[null,null,null,null,{"$f":"rellenar(Tabla1[[#This Row],[Beneficio]],Tabla1[[#This Row],[Cédula]],Tabla1[[#This Row],[Monto]])","v":""},{"$f":"LEN(Tabla1[[#This Row],[Datos para txt]])","v":0}]
[null,null,null,null,{"$f":"rellenar(Tabla1[[#This Row],[Beneficio]],Tabla1[[#This Row],[Cédula]],Tabla1[[#This Row],[Monto]])","v":""},{"$f":"LEN(Tabla1[[#This Row],[Datos para txt]])","v":0}]
[null,null,null,null,{"$f":"rellenar(Tabla1[[#This Row],[Beneficio]],Tabla1[[#This Row],[Cédula]],Tabla1[[#This Row],[Monto]])","v":""},{"$f":"LEN(Tabla1[[#This Row],[Datos para txt]])","v":0}]
[null,null,null,null,{"$f":"rellenar(Tabla1[[#This Row],[Beneficio]],Tabla1[[#This Row],[Cédula]],Tabla1[[#This Row],[Monto]])","v":""},{"$f":"LEN(Tabla1[[#This Row],[Datos para txt]])","v":0}]
[null,null,null,null,{"$f":"rellenar(Tabla1[[#This Row],[Beneficio]],Tabla1[[#This Row],[Cédula]],Tabla1[[#This Row],[Monto]])","v":""},{"$f":"LEN(Tabla1[[#This Row],[Datos para txt]])","v":0}]
[null,null,null,null,{"$f":"rellenar(Tabla1[[#This Row],[Beneficio]],Tabla1[[#This Row],[Cédula]],Tabla1[[#This Row],[Monto]])","v":""},{"$f":"LEN(Tabla1[[#This Row],[Datos para txt]])","v":0}]
[null,null,null,null,{"$f":"rellenar(Tabla1[[#This Row],[Beneficio]],Tabla1[[#This Row],[Cédula]],Tabla1[[#This Row],[Monto]])","v":""},{"$f":"LEN(Tabla1[[#This Row],[Datos para txt]])","v":0}]
[null,null,null,null,{"$f":"rellenar(Tabla1[[#This Row],[Beneficio]],Tabla1[[#This Row],[Cédula]],Tabla1[[#This Row],[Monto]])","v":""},{"$f":"LEN(Tabla1[[#This Row],[Datos para txt]])","v":0}]
[null,null,null,null,{"$f":"rellenar(Tabla1[[#This Row],[Beneficio]],Tabla1[[#This Row],[Cédula]],Tabla1[[#This Row],[Monto]])","v":""},{"$f":"LEN(Tabla1[[#This Row],[Datos para txt]])","v":0}]
[null,null,null,null,{"$f":"rellenar(Tabla1[[#This Row],[Beneficio]],Tabla1[[#This Row],[Cédula]],Tabla1[[#This Row],[Monto]])","v":""},{"$f":"LEN(Tabla1[[#This Row],[Datos para txt]])","v":0}]
[null,null,null,null,{"$f":"rellenar(Tabla1[[#This Row],[Beneficio]],Tabla1[[#This Row],[Cédula]],Tabla1[[#This Row],[Monto]])","v":""},{"$f":"LEN(Tabla1[[#This Row],[Datos para txt]])","v":0}]
[null,null,null,null,{"$f":"rellenar(Tabla1[[#This Row],[Beneficio]],Tabla1[[#This Row],[Cédula]],Tabla1[[#This Row],[Monto]])","v":""},{"$f":"LEN(Tabla1[[#This Row],[Datos para txt]])","v":0}]
[null,null,null,null,{"$f":"rellenar(Tabla1[[#This Row],[Beneficio]],Tabla1[[#This Row],[Cédula]],Tabla1[[#This Row],[Monto]])","v":""},{"$f":"LEN(Tabla1[[#This Row],[Datos para txt]])","v":0}]
[null,null,null,null,{"$f":"rellenar(Tabla1[[#This Row],[Beneficio]],Tabla1[[#This Row],[Cédula]],Tabla1[[#This Row],[Monto]])","v":""},{"$f":"LEN(Tabla1[[#This Row],[Datos para txt]])","v":0}]
[null,null,null,null,{"$f":"rellenar(Tabla1[[#This Row],[Beneficio]],Tabla1[[#This Row],[Cédula]],Tabla1[[#This Row],[Monto]])","v":""},{"$f":"LEN(Tabla1[[#This Row],[Datos para txt]])","v":0}]
[null,null,null,null,{"$f":"rellenar(Tabla1[[#This Row],[Beneficio]],Tabla1[[#This Row],[Cédula]],Tabla1[[#This Row],[Monto]])","v":""},{"$f":"LEN(Tabla1[[#This Row],[Datos para txt]])","v":0}]
[null,null,null,null,{"$f":"rellenar(Tabla1[[#This Row],[Beneficio]],Tabla1[[#This Row],[Cédula]],Tabla1[[#This Row],[Monto]])","v":""},{"$f":"LEN(Tabla1[[#This Row],[Datos para txt]])","v":0}]
[null,null,null,null,{"$f":"rellenar(Tabla1[[#This Row],[Beneficio]],Tabla1[[#This Row],[Cédula]],Tabla1[[#This Row],[Monto]])","v":""},{"$f":"LEN(Tabla1[[#This Row],[Datos para txt]])","v":0}]
[null,null,null,null,{"$f":"rellenar(Tabla1[[#This Row],[Beneficio]],Tabla1[[#This Row],[Cédula]],Tabla1[[#This Row],[Monto]])","v":""},{"$f":"LEN(Tabla1[[#This Row],[Datos para txt]])","v":0}]
[null,null,null,null,{"$f":"rellenar(Tabla1[[#This Row],[Beneficio]],Tabla1[[#This Row],[Cédula]],Tabla1[[#This Row],[Monto]])","v":""},{"$f":"LEN(Tabla1[[#This Row],[Datos para txt]])","v":0}]
[null,null,null,null,{"$f":"rellenar(Tabla1[[#This Row],[Beneficio]],Tabla1[[#This Row],[Cédula]],Tabla1[[#This Row],[Monto]])","v":""},{"$f":"LEN(Tabla1[[#This Row],[Datos para txt]])","v":0}]
[null,null,null,null,{"$f":"rellenar(Tabla1[[#This Row],[Beneficio]],Tabla1[[#This Row],[Cédula]],Tabla1[[#This Row],[Monto]])","v":""},{"$f":"LEN(Tabla1[[#This Row],[Datos para txt]])","v":0}]
[null,null,null,null,{"$f":"rellenar(Tabla1[[#This Row],[Beneficio]],Tabla1[[#This Row],[Cédula]],Tabla1[[#This Row],[Monto]])","v":""},{"$f":"LEN(Tabla1[[#This Row],[Datos para txt]])","v":0}]
[null,null,null,null,{"$f":"rellenar(Tabla1[[#This Row],[Beneficio]],Tabla1[[#This Row],[Cédula]],Tabla1[[#This Row],[Monto]])","v":""},{"$f":"LEN(Tabla1[[#This Row],[Datos para txt]])","v":0}]
[null,null,null,null,{"$f":"rellenar(Tabla1[[#This Row],[Beneficio]],Tabla1[[#This Row],[Cédula]],Tabla1[[#This Row],[Monto]])","v":""},{"$f":"LEN(Tabla1[[#This Row],[Datos para txt]])","v":0}]
[null,null,null,null,{"$f":"rellenar(Tabla1[[#This Row],[Beneficio]],Tabla1[[#This Row],[Cédula]],Tabla1[[#This Row],[Monto]])","v":""},{"$f":"LEN(Tabla1[[#This Row],[Datos para txt]])","v":0}]
[null,null,null,null,{"$f":"rellenar(Tabla1[[#This Row],[Beneficio]],Tabla1[[#This Row],[Cédula]],Tabla1[[#This Row],[Monto]])","v":""},{"$f":"LEN(Tabla1[[#This Row],[Datos para txt]])","v":0}]
[null,null,null,null,{"$f":"rellenar(Tabla1[[#This Row],[Beneficio]],Tabla1[[#This Row],[Cédula]],Tabla1[[#This Row],[Monto]])","v":""},{"$f":"LEN(Tabla1[[#This Row],[Datos para txt]])","v":0}]
[null,null,null,null,{"$f":"rellenar(Tabla1[[#This Row],[Beneficio]],Tabla1[[#This Row],[Cédula]],Tabla1[[#This Row],[Monto]])","v":""},{"$f":"LEN(Tabla1[[#This Row],[Datos para txt]])","v":0}]
[null,null,null,null,{"$f":"rellenar(Tabla1[[#This Row],[Beneficio]],Tabla1[[#This Row],[Cédula]],Tabla1[[#This Row],[Monto]])","v":""},{"$f":"LEN(Tabla1[[#This Row],[Datos para txt]])","v":0}]
[null,null,null,null,{"$f":"rellenar(Tabla1[[#This Row],[Beneficio]],Tabla1[[#This Row],[Cédula]],Tabla1[[#This Row],[Monto]])","v":""},{"$f":"LEN(Tabla1[[#This Row],[Datos para txt]])","v":0}]
[null,null,null,null,{"$f":"rellenar(Tabla1[[#This Row],[Beneficio]],Tabla1[[#This Row],[Cédula]],Tabla1[[#This Row],[Monto]])","v":""},{"$f":"LEN(Tabla1[[#This Row],[Datos para txt]])","v":0}]
[null,null,null,null,{"$f":"rellenar(Tabla1[[#This Row],[Beneficio]],Tabla1[[#This Row],[Cédula]],Tabla1[[#This Row],[Monto]])","v":""},{"$f":"LEN(Tabla1[[#This Row],[Datos para txt]])","v":0}]
[null,null,null,null,{"$f":"rellenar(Tabla1[[#This Row],[Beneficio]],Tabla1[[#This Row],[Cédula]],Tabla1[[#This Row],[Monto]])","v":""},{"$f":"LEN(Tabla1[[#This Row],[Datos para txt]])","v":0}]
[null,null,null,null,{"$f":"rellenar(Tabla1[[#This Row],[Beneficio]],Tabla1[[#This Row],[Cédula]],Tabla1[[#This Row],[Monto]])","v":""},{"$f":"LEN(Tabla1[[#This Row],[Datos para txt]])","v":0}]
[null,null,null,null,{"$f":"rellenar(Tabla1[[#This Row],[Beneficio]],Tabla1[[#This Row],[Cédula]],Tabla1[[#This Row],[Monto]])","v":""},{"$f":"LEN(Tabla1[[#This Row],[Datos para txt]])","v":0}]
[null,null,null,null,{"$f":"rellenar(Tabla1[[#This Row],[Beneficio]],Tabla1[[#This Row],[Cédula]],Tabla1[[#This Row],[Monto]])","v":""},{"$f":"LEN(Tabla1[[#This Row],[Datos para txt]])","v":0}]
[null,null,null,null,{"$f":"rellenar(Tabla1[[#This Row],[Beneficio]],Tabla1[[#This Row],[Cédula]],Tabla1[[#This Row],[Monto]])","v":""},{"$f":"LEN(Tabla1[[#This Row],[Datos para txt]])","v":0}]
[null,null,null,null,{"$f":"rellenar(Tabla1[[#This Row],[Beneficio]],Tabla1[[#This Row],[Cédula]],Tabla1[[#This Row],[Monto]])","v":""},{"$f":"LEN(Tabla1[[#This Row],[Datos para txt]])","v":0}]
[null,null,null,null,{"$f":"rellenar(Tabla1[[#This Row],[Beneficio]],Tabla1[[#This Row],[Cédula]],Tabla1[[#This Row],[Monto]])","v":""},{"$f":"LEN(Tabla1[[#This Row],[Datos para txt]])","v":0}]
[null,null,null,null,{"$f":"rellenar(Tabla1[[#This Row],[Beneficio]],Tabla1[[#This Row],[Cédula]],Tabla1[[#This Row],[Monto]])","v":""},{"$f":"LEN(Tabla1[[#This Row],[Datos para txt]])","v":0}]
[null,null,null,null,{"$f":"rellenar(Tabla1[[#This Row],[Beneficio]],Tabla1[[#This Row],[Cédula]],Tabla1[[#This Row],[Monto]])","v":""},{"$f":"LEN(Tabla1[[#This Row],[Datos para txt]])","v":0}]
[null,null,null,null,{"$f":"rellenar(Tabla1[[#This Row],[Beneficio]],Tabla1[[#This Row],[Cédula]],Tabla1[[#This Row],[Monto]])","v":""},{"$f":"LEN(Tabla1[[#This Row],[Datos para txt]])","v":0}]
[null,null,null,null,{"$f":"rellenar(Tabla1[[#This Row],[Beneficio]],Tabla1[[#This Row],[Cédula]],Tabla1[[#This Row],[Monto]])","v":""},{"$f":"LEN(Tabla1[[#This Row],[Datos para txt]])","v":0}]
[null,null,null,null,{"$f":"rellenar(Tabla1[[#This Row],[Beneficio]],Tabla1[[#This Row],[Cédula]],Tabla1[[#This Row],[Monto]])","v":""},{"$f":"LEN(Tabla1[[#This Row],[Datos para txt]])","v":0}]
[null,null,null,null,{"$f":"rellenar(Tabla1[[#This Row],[Beneficio]],Tabla1[[#This Row],[Cédula]],Tabla1[[#This Row],[Monto]])","v":""},{"$f":"LEN(Tabla1[[#This Row],[Datos para txt]])","v":0}]
[null,null,null,null,{"$f":"rellenar(Tabla1[[#This Row],[Beneficio]],Tabla1[[#This Row],[Cédula]],Tabla1[[#This Row],[Monto]])","v":""},{"$f":"LEN(Tabla1[[#This Row],[Datos para txt]])","v":0}]
[null,null,null,null,{"$f":"rellenar(Tabla1[[#This Row],[Beneficio]],Tabla1[[#This Row],[Cédula]],Tabla1[[#This Row],[Monto]])","v":""},{"$f":"LEN(Tabla1[[#This Row],[Datos para txt]])","v":0}]
[null,null,null,null,{"$f":"rellenar(Tabla1[[#This Row],[Beneficio]],Tabla1[[#This Row],[Cédula]],Tabla1[[#This Row],[Monto]])","v":""},{"$f":"LEN(Tabla1[[#This Row],[Datos para txt]])","v":0}]
[null,null,null,null,{"$f":"rellenar(Tabla1[[#This Row],[Beneficio]],Tabla1[[#This Row],[Cédula]],Tabla1[[#This Row],[Monto]])","v":""},{"$f":"LEN(Tabla1[[#This Row],[Datos para txt]])","v":0}]
[null,null,null,null,{"$f":"rellenar(Tabla1[[#This Row],[Beneficio]],Tabla1[[#This Row],[Cédula]],Tabla1[[#This Row],[Monto]])","v":""},{"$f":"LEN(Tabla1[[#This Row],[Datos para txt]])","v":0}]
[null,null,null,null,{"$f":"rellenar(Tabla1[[#This Row],[Beneficio]],Tabla1[[#This Row],[Cédula]],Tabla1[[#This Row],[Monto]])","v":""},{"$f":"LEN(Tabla1[[#This Row],[Datos para txt]])","v":0}]
[null,null,null,null,{"$f":"rellenar(Tabla1[[#This Row],[Beneficio]],Tabla1[[#This Row],[Cédula]],Tabla1[[#This Row],[Monto]])","v":""},{"$f":"LEN(Tabla1[[#This Row],[Datos para txt]])","v":0}]
[null,null,null,null,{"$f":"rellenar(Tabla1[[#This Row],[Beneficio]],Tabla1[[#This Row],[Cédula]],Tabla1[[#This Row],[Monto]])","v":""},{"$f":"LEN(Tabla1[[#This Row],[Datos para txt]])","v":0}]
[null,null,null,null,{"$f":"rellenar(Tabla1[[#This Row],[Beneficio]],Tabla1[[#This Row],[Cédula]],Tabla1[[#This Row],[Monto]])","v":""},{"$f":"LEN(Tabla1[[#This Row],[Datos para txt]])","v":0}]
[null,null,null,null,{"$f":"rellenar(Tabla1[[#This Row],[Beneficio]],Tabla1[[#This Row],[Cédula]],Tabla1[[#This Row],[Monto]])","v":""},{"$f":"LEN(Tabla1[[#This Row],[Datos para txt]])","v":0}]
[null,null,null,null,{"$f":"rellenar(Tabla1[[#This Row],[Beneficio]],Tabla1[[#This Row],[Cédula]],Tabla1[[#This Row],[Monto]])","v":""},{"$f":"LEN(Tabla1[[#This Row],[Datos para txt]])","v":0}]
[null,null,null,null,{"$f":"rellenar(Tabla1[[#This Row],[Beneficio]],Tabla1[[#This Row],[Cédula]],Tabla1[[#This Row],[Monto]])","v":""},{"$f":"LEN(Tabla1[[#This Row],[Datos para txt]])","v":0}]
[null,null,null,null,{"$f":"rellenar(Tabla1[[#This Row],[Beneficio]],Tabla1[[#This Row],[Cédula]],Tabla1[[#This Row],[Monto]])","v":""},{"$f":"LEN(Tabla1[[#This Row],[Datos para txt]])","v":0}]
[null,null,null,null,{"$f":"rellenar(Tabla1[[#This Row],[Beneficio]],Tabla1[[#This Row],[Cédula]],Tabla1[[#This Row],[Monto]])","v":""},{"$f":"LEN(Tabla1[[#This Row],[Datos para txt]])","v":0}]
[null,null,null,null,{"$f":"rellenar(Tabla1[[#This Row],[Beneficio]],Tabla1[[#This Row],[Cédula]],Tabla1[[#This Row],[Monto]])","v":""},{"$f":"LEN(Tabla1[[#This Row],[Datos para txt]])","v":0}]
[null,null,null,null,{"$f":"rellenar(Tabla1[[#This Row],[Beneficio]],Tabla1[[#This Row],[Cédula]],Tabla1[[#This Row],[Monto]])","v":""},{"$f":"LEN(Tabla1[[#This Row],[Datos para txt]])","v":0}]
[null,null,null,null,{"$f":"rellenar(Tabla1[[#This Row],[Beneficio]],Tabla1[[#This Row],[Cédula]],Tabla1[[#This Row],[Monto]])","v":""},{"$f":"LEN(Tabla1[[#This Row],[Datos para txt]])","v":0}]
[null,null,null,null,{"$f":"rellenar(Tabla1[[#This Row],[Beneficio]],Tabla1[[#This Row],[Cédula]],Tabla1[[#This Row],[Monto]])","v":""},{"$f":"LEN(Tabla1[[#This Row],[Datos para txt]])","v":0}]
[null,null,null,null,{"$f":"rellenar(Tabla1[[#This Row],[Beneficio]],Tabla1[[#This Row],[Cédula]],Tabla1[[#This Row],[Monto]])","v":""},{"$f":"LEN(Tabla1[[#This Row],[Datos para txt]])","v":0}]
[null,null,null,null,{"$f":"rellenar(Tabla1[[#This Row],[Beneficio]],Tabla1[[#This Row],[Cédula]],Tabla1[[#This Row],[Monto]])","v":""},{"$f":"LEN(Tabla1[[#This Row],[Datos para txt]])","v":0}]
[null,null,null,null,{"$f":"rellenar(Tabla1[[#This Row],[Beneficio]],Tabla1[[#This Row],[Cédula]],Tabla1[[#This Row],[Monto]])","v":""},{"$f":"LEN(Tabla1[[#This Row],[Datos para txt]])","v":0}]
[null,null,null,null,{"$f":"rellenar(Tabla1[[#This Row],[Beneficio]],Tabla1[[#This Row],[Cédula]],Tabla1[[#This Row],[Monto]])","v":""},{"$f":"LEN(Tabla1[[#This Row],[Datos para txt]])","v":0}]
[null,null,null,null,{"$f":"rellenar(Tabla1[[#This Row],[Beneficio]],Tabla1[[#This Row],[Cédula]],Tabla1[[#This Row],[Monto]])","v":""},{"$f":"LEN(Tabla1[[#This Row],[Datos para txt]])","v":0}]
[null,null,null,null,{"$f":"rellenar(Tabla1[[#This Row],[Beneficio]],Tabla1[[#This Row],[Cédula]],Tabla1[[#This Row],[Monto]])","v":""},{"$f":"LEN(Tabla1[[#This Row],[Datos para txt]])","v":0}]
[null,null,null,null,{"$f":"rellenar(Tabla1[[#This Row],[Beneficio]],Tabla1[[#This Row],[Cédula]],Tabla1[[#This Row],[Monto]])","v":""},{"$f":"LEN(Tabla1[[#This Row],[Datos para txt]])","v":0}]
[null,null,null,null,{"$f":"rellenar(Tabla1[[#This Row],[Beneficio]],Tabla1[[#This Row],[Cédula]],Tabla1[[#This Row],[Monto]])","v":""},{"$f":"LEN(Tabla1[[#This Row],[Datos para txt]])","v":0}]
[null,null,null,null,{"$f":"rellenar(Tabla1[[#This Row],[Beneficio]],Tabla1[[#This Row],[Cédula]],Tabla1[[#This Row],[Monto]])","v":""},{"$f":"LEN(Tabla1[[#This Row],[Datos para txt]])","v":0}]
[null,null,null,null,{"$f":"rellenar(Tabla1[[#This Row],[Beneficio]],Tabla1[[#This Row],[Cédula]],Tabla1[[#This Row],[Monto]])","v":""},{"$f":"LEN(Tabla1[[#This Row],[Datos para txt]])","v":0}]
[null,null,null,null,{"$f":"rellenar(Tabla1[[#This Row],[Beneficio]],Tabla1[[#This Row],[Cédula]],Tabla1[[#This Row],[Monto]])","v":""},{"$f":"LEN(Tabla1[[#This Row],[Datos para txt]])","v":0}]
[null,null,null,null,{"$f":"rellenar(Tabla1[[#This Row],[Beneficio]],Tabla1[[#This Row],[Cédula]],Tabla1[[#This Row],[Monto]])","v":""},{"$f":"LEN(Tabla1[[#This Row],[Datos para txt]])","v":0}]
[null,null,null,null,{"$f":"rellenar(Tabla1[[#This Row],[Beneficio]],Tabla1[[#This Row],[Cédula]],Tabla1[[#This Row],[Monto]])","v":""},{"$f":"LEN(Tabla1[[#This Row],[Datos para txt]])","v":0}]
[null,null,null,null,{"$f":"rellenar(Tabla1[[#This Row],[Beneficio]],Tabla1[[#This Row],[Cédula]],Tabla1[[#This Row],[Monto]])","v":""},{"$f":"LEN(Tabla1[[#This Row],[Datos para txt]])","v":0}]
[null,null,null,null,{"$f":"rellenar(Tabla1[[#This Row],[Beneficio]],Tabla1[[#This Row],[Cédula]],Tabla1[[#This Row],[Monto]])","v":""},{"$f":"LEN(Tabla1[[#This Row],[Datos para txt]])","v":0}]
[null,null,null,null,{"$f":"rellenar(Tabla1[[#This Row],[Beneficio]],Tabla1[[#This Row],[Cédula]],Tabla1[[#This Row],[Monto]])","v":""},{"$f":"LEN(Tabla1[[#This Row],[Datos para txt]])","v":0}]
[null,null,null,null,{"$f":"rellenar(Tabla1[[#This Row],[Beneficio]],Tabla1[[#This Row],[Cédula]],Tabla1[[#This Row],[Monto]])","v":""},{"$f":"LEN(Tabla1[[#This Row],[Datos para txt]])","v":0}]
[null,null,null,null,{"$f":"rellenar(Tabla1[[#This Row],[Beneficio]],Tabla1[[#This Row],[Cédula]],Tabla1[[#This Row],[Monto]])","v":""},{"$f":"LEN(Tabla1[[#This Row],[Datos para txt]])","v":0}]
[null,null,null,null,{"$f":"rellenar(Tabla1[[#This Row],[Beneficio]],Tabla1[[#This Row],[Cédula]],Tabla1[[#This Row],[Monto]])","v":""},{"$f":"LEN(Tabla1[[#This Row],[Datos para txt]])","v":0}]
[null,null,null,null,{"$f":"rellenar(Tabla1[[#This Row],[Beneficio]],Tabla1[[#This Row],[Cédula]],Tabla1[[#This Row],[Monto]])","v":""},{"$f":"LEN(Tabla1[[#This Row],[Datos para txt]])","v":0}]
[null,null,null,null,{"$f":"rellenar(Tabla1[[#This Row],[Beneficio]],Tabla1[[#This Row],[Cédula]],Tabla1[[#This Row],[Monto]])","v":""},{"$f":"LEN(Tabla1[[#This Row],[Datos para txt]])","v":0}]
[null,null,null,null,{"$f":"rellenar(Tabla1[[#This Row],[Beneficio]],Tabla1[[#This Row],[Cédula]],Tabla1[[#This Row],[Monto]])","v":""},{"$f":"LEN(Tabla1[[#This Row],[Datos para txt]])","v":0}]
[null,null,null,null,{"$f":"rellenar(Tabla1[[#This Row],[Beneficio]],Tabla1[[#This Row],[Cédula]],Tabla1[[#This Row],[Monto]])","v":""},{"$f":"LEN(Tabla1[[#This Row],[Datos para txt]])","v":0}]
[null,null,null,null,{"$f":"rellenar(Tabla1[[#This Row],[Beneficio]],Tabla1[[#This Row],[Cédula]],Tabla1[[#This Row],[Monto]])","v":""},{"$f":"LEN(Tabla1[[#This Row],[Datos para txt]])","v":0}]
[null,null,null,null,{"$f":"rellenar(Tabla1[[#This Row],[Beneficio]],Tabla1[[#This Row],[Cédula]],Tabla1[[#This Row],[Monto]])","v":""},{"$f":"LEN(Tabla1[[#This Row],[Datos para txt]])","v":0}]
[null,null,null,null,{"$f":"rellenar(Tabla1[[#This Row],[Beneficio]],Tabla1[[#This Row],[Cédula]],Tabla1[[#This Row],[Monto]])","v":""},{"$f":"LEN(Tabla1[[#This Row],[Datos para txt]])","v":0}]
[null,null,null,null,{"$f":"rellenar(Tabla1[[#This Row],[Beneficio]],Tabla1[[#This Row],[Cédula]],Tabla1[[#This Row],[Monto]])","v":""},{"$f":"LEN(Tabla1[[#This Row],[Datos para txt]])","v":0}]
[null,null,null,null,{"$f":"rellenar(Tabla1[[#This Row],[Beneficio]],Tabla1[[#This Row],[Cédula]],Tabla1[[#This Row],[Monto]])","v":""},{"$f":"LEN(Tabla1[[#This Row],[Datos para txt]])","v":0}]
[null,null,null,null,{"$f":"rellenar(Tabla1[[#This Row],[Beneficio]],Tabla1[[#This Row],[Cédula]],Tabla1[[#This Row],[Monto]])","v":""},{"$f":"LEN(Tabla1[[#This Row],[Datos para txt]])","v":0}]
[null,null,null,null,{"$f":"rellenar(Tabla1[[#This Row],[Beneficio]],Tabla1[[#This Row],[Cédula]],Tabla1[[#This Row],[Monto]])","v":""},{"$f":"LEN(Tabla1[[#This Row],[Datos para txt]])","v":0}]
[null,null,null,null,{"$f":"rellenar(Tabla1[[#This Row],[Beneficio]],Tabla1[[#This Row],[Cédula]],Tabla1[[#This Row],[Monto]])","v":""},{"$f":"LEN(Tabla1[[#This Row],[Datos para txt]])","v":0}]
[null,null,null,null,{"$f":"rellenar(Tabla1[[#This Row],[Beneficio]],Tabla1[[#This Row],[Cédula]],Tabla1[[#This Row],[Monto]])","v":""},{"$f":"LEN(Tabla1[[#This Row],[Datos para txt]])","v":0}]
[null,null,null,null,{"$f":"rellenar(Tabla1[[#This Row],[Beneficio]],Tabla1[[#This Row],[Cédula]],Tabla1[[#This Row],[Monto]])","v":""},{"$f":"LEN(Tabla1[[#This Row],[Datos para txt]])","v":0}]
[null,null,null,null,{"$f":"rellenar(Tabla1[[#This Row],[Beneficio]],Tabla1[[#This Row],[Cédula]],Tabla1[[#This Row],[Monto]])","v":""},{"$f":"LEN(Tabla1[[#This Row],[Datos para txt]])","v":0}]
[null,null,null,null,{"$f":"rellenar(Tabla1[[#This Row],[Beneficio]],Tabla1[[#This Row],[Cédula]],Tabla1[[#This Row],[Monto]])","v":""},{"$f":"LEN(Tabla1[[#This Row],[Datos para txt]])","v":0}]
[null,null,null,null,{"$f":"rellenar(Tabla1[[#This Row],[Beneficio]],Tabla1[[#This Row],[Cédula]],Tabla1[[#This Row],[Monto]])","v":""},{"$f":"LEN(Tabla1[[#This Row],[Datos para txt]])","v":0}]
[null,null,null,null,{"$f":"rellenar(Tabla1[[#This Row],[Beneficio]],Tabla1[[#This Row],[Cédula]],Tabla1[[#This Row],[Monto]])","v":""},{"$f":"LEN(Tabla1[[#This Row],[Datos para txt]])","v":0}]
[null,null,null,null,{"$f":"rellenar(Tabla1[[#This Row],[Beneficio]],Tabla1[[#This Row],[Cédula]],Tabla1[[#This Row],[Monto]])","v":""},{"$f":"LEN(Tabla1[[#This Row],[Datos para txt]])","v":0}]
[null,null,null,null,{"$f":"rellenar(Tabla1[[#This Row],[Beneficio]],Tabla1[[#This Row],[Cédula]],Tabla1[[#This Row],[Monto]])","v":""},{"$f":"LEN(Tabla1[[#This Row],[Datos para txt]])","v":0}]
[null,null,null,null,{"$f":"rellenar(Tabla1[[#This Row],[Beneficio]],Tabla1[[#This Row],[Cédula]],Tabla1[[#This Row],[Monto]])","v":""},{"$f":"LEN(Tabla1[[#This Row],[Datos para txt]])","v":0}]
[null,null,null,null,{"$f":"rellenar(Tabla1[[#This Row],[Beneficio]],Tabla1[[#This Row],[Cédula]],Tabla1[[#This Row],[Monto]])","v":""},{"$f":"LEN(Tabla1[[#This Row],[Datos para txt]])","v":0}]
[null,null,null,null,{"$f":"rellenar(Tabla1[[#This Row],[Beneficio]],Tabla1[[#This Row],[Cédula]],Tabla1[[#This Row],[Monto]])","v":""},{"$f":"LEN(Tabla1[[#This Row],[Datos para txt]])","v":0}]
[null,null,null,null,{"$f":"rellenar(Tabla1[[#This Row],[Beneficio]],Tabla1[[#This Row],[Cédula]],Tabla1[[#This Row],[Monto]])","v":""},{"$f":"LEN(Tabla1[[#This Row],[Datos para txt]])","v":0}]
[null,null,null,null,{"$f":"rellenar(Tabla1[[#This Row],[Beneficio]],Tabla1[[#This Row],[Cédula]],Tabla1[[#This Row],[Monto]])","v":""},{"$f":"LEN(Tabla1[[#This Row],[Datos para txt]])","v":0}]
[null,null,null,null,{"$f":"rellenar(Tabla1[[#This Row],[Beneficio]],Tabla1[[#This Row],[Cédula]],Tabla1[[#This Row],[Monto]])","v":""},{"$f":"LEN(Tabla1[[#This Row],[Datos para txt]])","v":0}]
[null,null,null,null,{"$f":"rellenar(Tabla1[[#This Row],[Beneficio]],Tabla1[[#This Row],[Cédula]],Tabla1[[#This Row],[Monto]])","v":""},{"$f":"LEN(Tabla1[[#This Row],[Datos para txt]])","v":0}]
[null,null,null,null,{"$f":"rellenar(Tabla1[[#This Row],[Beneficio]],Tabla1[[#This Row],[Cédula]],Tabla1[[#This Row],[Monto]])","v":""},{"$f":"LEN(Tabla1[[#This Row],[Datos para txt]])","v":0}]
[null,null,null,null,{"$f":"rellenar(Tabla1[[#This Row],[Beneficio]],Tabla1[[#This Row],[Cédula]],Tabla1[[#This Row],[Monto]])","v":""},{"$f":"LEN(Tabla1[[#This Row],[Datos para txt]])","v":0}]
[null,null,null,null,{"$f":"rellenar(Tabla1[[#This Row],[Beneficio]],Tabla1[[#This Row],[Cédula]],Tabla1[[#This Row],[Monto]])","v":""},{"$f":"LEN(Tabla1[[#This Row],[Datos para txt]])","v":0}]
[null,null,null,null,{"$f":"rellenar(Tabla1[[#This Row],[Beneficio]],Tabla1[[#This Row],[Cédula]],Tabla1[[#This Row],[Monto]])","v":""},{"$f":"LEN(Tabla1[[#This Row],[Datos para txt]])","v":0}]
[null,null,null,null,{"$f":"rellenar(Tabla1[[#This Row],[Beneficio]],Tabla1[[#This Row],[Cédula]],Tabla1[[#This Row],[Monto]])","v":""},{"$f":"LEN(Tabla1[[#This Row],[Datos para txt]])","v":0}]
[null,null,null,null,{"$f":"rellenar(Tabla1[[#This Row],[Beneficio]],Tabla1[[#This Row],[Cédula]],Tabla1[[#This Row],[Monto]])","v":""},{"$f":"LEN(Tabla1[[#This Row],[Datos para txt]])","v":0}]
[null,null,null,null,{"$f":"rellenar(Tabla1[[#This Row],[Beneficio]],Tabla1[[#This Row],[Cédula]],Tabla1[[#This Row],[Monto]])","v":""},{"$f":"LEN(Tabla1[[#This Row],[Datos para txt]])","v":0}]
[null,null,null,null,{"$f":"rellenar(Tabla1[[#This Row],[Beneficio]],Tabla1[[#This Row],[Cédula]],Tabla1[[#This Row],[Monto]])","v":""},{"$f":"LEN(Tabla1[[#This Row],[Datos para txt]])","v":0}]
[null,null,null,null,{"$f":"rellenar(Tabla1[[#This Row],[Beneficio]],Tabla1[[#This Row],[Cédula]],Tabla1[[#This Row],[Monto]])","v":""},{"$f":"LEN(Tabla1[[#This Row],[Datos para txt]])","v":0}]
[null,null,null,null,{"$f":"rellenar(Tabla1[[#This Row],[Beneficio]],Tabla1[[#This Row],[Cédula]],Tabla1[[#This Row],[Monto]])","v":""},{"$f":"LEN(Tabla1[[#This Row],[Datos para txt]])","v":0}]
[null,null,null,null,{"$f":"rellenar(Tabla1[[#This Row],[Beneficio]],Tabla1[[#This Row],[Cédula]],Tabla1[[#This Row],[Monto]])","v":""},{"$f":"LEN(Tabla1[[#This Row],[Datos para txt]])","v":0}]
[null,null,null,null,{"$f":"rellenar(Tabla1[[#This Row],[Beneficio]],Tabla1[[#This Row],[Cédula]],Tabla1[[#This Row],[Monto]])","v":""},{"$f":"LEN(Tabla1[[#This Row],[Datos para txt]])","v":0}]
[null,null,null,null,{"$f":"rellenar(Tabla1[[#This Row],[Beneficio]],Tabla1[[#This Row],[Cédula]],Tabla1[[#This Row],[Monto]])","v":""},{"$f":"LEN(Tabla1[[#This Row],[Datos para txt]])","v":0}]
[null,null,null,null,{"$f":"rellenar(Tabla1[[#This Row],[Beneficio]],Tabla1[[#This Row],[Cédula]],Tabla1[[#This Row],[Monto]])","v":""},{"$f":"LEN(Tabla1[[#This Row],[Datos para txt]])","v":0}]
[null,null,null,null,{"$f":"rellenar(Tabla1[[#This Row],[Beneficio]],Tabla1[[#This Row],[Cédula]],Tabla1[[#This Row],[Monto]])","v":""},{"$f":"LEN(Tabla1[[#This Row],[Datos para txt]])","v":0}]
[null,null,null,null,{"$f":"rellenar(Tabla1[[#This Row],[Beneficio]],Tabla1[[#This Row],[Cédula]],Tabla1[[#This Row],[Monto]])","v":""},{"$f":"LEN(Tabla1[[#This Row],[Datos para txt]])","v":0}]
[null,null,null,null,{"$f":"rellenar(Tabla1[[#This Row],[Beneficio]],Tabla1[[#This Row],[Cédula]],Tabla1[[#This Row],[Monto]])","v":""},{"$f":"LEN(Tabla1[[#This Row],[Datos para txt]])","v":0}]
[null,null,null,null,{"$f":"rellenar(Tabla1[[#This Row],[Beneficio]],Tabla1[[#This Row],[Cédula]],Tabla1[[#This Row],[Monto]])","v":""},{"$f":"LEN(Tabla1[[#This Row],[Datos para txt]])","v":0}]
[null,null,null,null,{"$f":"rellenar(Tabla1[[#This Row],[Beneficio]],Tabla1[[#This Row],[Cédula]],Tabla1[[#This Row],[Monto]])","v":""},{"$f":"LEN(Tabla1[[#This Row],[Datos para txt]])","v":0}]
[null,null,null,null,{"$f":"rellenar(Tabla1[[#This Row],[Beneficio]],Tabla1[[#This Row],[Cédula]],Tabla1[[#This Row],[Monto]])","v":""},{"$f":"LEN(Tabla1[[#This Row],[Datos para txt]])","v":0}]
[null,null,null,null,{"$f":"rellenar(Tabla1[[#This Row],[Beneficio]],Tabla1[[#This Row],[Cédula]],Tabla1[[#This Row],[Monto]])","v":""},{"$f":"LEN(Tabla1[[#This Row],[Datos para txt]])","v":0}]
[null,null,null,null,{"$f":"rellenar(Tabla1[[#This Row],[Beneficio]],Tabla1[[#This Row],[Cédula]],Tabla1[[#This Row],[Monto]])","v":""},{"$f":"LEN(Tabla1[[#This Row],[Datos para txt]])","v":0}]
[null,null,null,null,{"$f":"rellenar(Tabla1[[#This Row],[Beneficio]],Tabla1[[#This Row],[Cédula]],Tabla1[[#This Row],[Monto]])","v":""},{"$f":"LEN(Tabla1[[#This Row],[Datos para txt]])","v":0}]
[null,null,null,null,{"$f":"rellenar(Tabla1[[#This Row],[Beneficio]],Tabla1[[#This Row],[Cédula]],Tabla1[[#This Row],[Monto]])","v":""},{"$f":"LEN(Tabla1[[#This Row],[Datos para txt]])","v":0}]
[null,null,null,null,{"$f":"rellenar(Tabla1[[#This Row],[Beneficio]],Tabla1[[#This Row],[Cédula]],Tabla1[[#This Row],[Monto]])","v":""},{"$f":"LEN(Tabla1[[#This Row],[Datos para txt]])","v":0}]
[null,null,null,null,{"$f":"rellenar(Tabla1[[#This Row],[Beneficio]],Tabla1[[#This Row],[Cédula]],Tabla1[[#This Row],[Monto]])","v":""},{"$f":"LEN(Tabla1[[#This Row],[Datos para txt]])","v":0}]
[null,null,null,null,{"$f":"rellenar(Tabla1[[#This Row],[Beneficio]],Tabla1[[#This Row],[Cédula]],Tabla1[[#This Row],[Monto]])","v":""},{"$f":"LEN(Tabla1[[#This Row],[Datos para txt]])","v":0}]
[null,null,null,null,{"$f":"rellenar(Tabla1[[#This Row],[Beneficio]],Tabla1[[#This Row],[Cédula]],Tabla1[[#This Row],[Monto]])","v":""},{"$f":"LEN(Tabla1[[#This Row],[Datos para txt]])","v":0}]
[null,null,null,null,{"$f":"rellenar(Tabla1[[#This Row],[Beneficio]],Tabla1[[#This Row],[Cédula]],Tabla1[[#This Row],[Monto]])","v":""},{"$f":"LEN(Tabla1[[#This Row],[Datos para txt]])","v":0}]
[null,null,null,null,{"$f":"rellenar(Tabla1[[#This Row],[Beneficio]],Tabla1[[#This Row],[Cédula]],Tabla1[[#This Row],[Monto]])","v":""},{"$f":"LEN(Tabla1[[#This Row],[Datos para txt]])","v":0}]
[null,null,null,null,{"$f":"rellenar(Tabla1[[#This Row],[Beneficio]],Tabla1[[#This Row],[Cédula]],Tabla1[[#This Row],[Monto]])","v":""},{"$f":"LEN(Tabla1[[#This Row],[Datos para txt]])","v":0}]
[null,null,null,null,{"$f":"rellenar(Tabla1[[#This Row],[Beneficio]],Tabla1[[#This Row],[Cédula]],Tabla1[[#This Row],[Monto]])","v":""},{"$f":"LEN(Tabla1[[#This Row],[Datos para txt]])","v":0}]
[null,null,null,null,{"$f":"rellenar(Tabla1[[#This Row],[Beneficio]],Tabla1[[#This Row],[Cédula]],Tabla1[[#This Row],[Monto]])","v":""},{"$f":"LEN(Tabla1[[#This Row],[Datos para txt]])","v":0}]
[null,null,null,null,{"$f":"rellenar(Tabla1[[#This Row],[Beneficio]],Tabla1[[#This Row],[Cédula]],Tabla1[[#This Row],[Monto]])","v":""},{"$f":"LEN(Tabla1[[#This Row],[Datos para txt]])","v":0}]
[null,null,null,null,{"$f":"rellenar(Tabla1[[#This Row],[Beneficio]],Tabla1[[#This Row],[Cédula]],Tabla1[[#This Row],[Monto]])","v":""},{"$f":"LEN(Tabla1[[#This Row],[Datos para txt]])","v":0}]
[null,null,null,null,{"$f":"rellenar(Tabla1[[#This Row],[Beneficio]],Tabla1[[#This Row],[Cédula]],Tabla1[[#This Row],[Monto]])","v":""},{"$f":"LEN(Tabla1[[#This Row],[Datos para txt]])","v":0}]
[null,null,null,null,{"$f":"rellenar(Tabla1[[#This Row],[Beneficio]],Tabla1[[#This Row],[Cédula]],Tabla1[[#This Row],[Monto]])","v":""},{"$f":"LEN(Tabla1[[#This Row],[Datos para txt]])","v":0}]
[null,null,null,null,{"$f":"rellenar(Tabla1[[#This Row],[Beneficio]],Tabla1[[#This Row],[Cédula]],Tabla1[[#This Row],[Monto]])","v":""},{"$f":"LEN(Tabla1[[#This Row],[Datos para txt]])","v":0}]
[null,null,null,null,{"$f":"rellenar(Tabla1[[#This Row],[Beneficio]],Tabla1[[#This Row],[Cédula]],Tabla1[[#This Row],[Monto]])","v":""},{"$f":"LEN(Tabla1[[#This Row],[Datos para txt]])","v":0}]
[null,null,null,null,{"$f":"rellenar(Tabla1[[#This Row],[Beneficio]],Tabla1[[#This Row],[Cédula]],Tabla1[[#This Row],[Monto]])","v":""},{"$f":"LEN(Tabla1[[#This Row],[Datos para txt]])","v":0}]
[null,null,null,null,{"$f":"rellenar(Tabla1[[#This Row],[Beneficio]],Tabla1[[#This Row],[Cédula]],Tabla1[[#This Row],[Monto]])","v":""},{"$f":"LEN(Tabla1[[#This Row],[Datos para txt]])","v":0}]
[null,null,null,null,{"$f":"rellenar(Tabla1[[#This Row],[Beneficio]],Tabla1[[#This Row],[Cédula]],Tabla1[[#This Row],[Monto]])","v":""},{"$f":"LEN(Tabla1[[#This Row],[Datos para txt]])","v":0}]
[null,null,null,null,{"$f":"rellenar(Tabla1[[#This Row],[Beneficio]],Tabla1[[#This Row],[Cédula]],Tabla1[[#This Row],[Monto]])","v":""},{"$f":"LEN(Tabla1[[#This Row],[Datos para txt]])","v":0}]
[null,null,null,null,{"$f":"rellenar(Tabla1[[#This Row],[Beneficio]],Tabla1[[#This Row],[Cédula]],Tabla1[[#This Row],[Monto]])","v":""},{"$f":"LEN(Tabla1[[#This Row],[Datos para txt]])","v":0}]
[null,null,null,null,{"$f":"rellenar(Tabla1[[#This Row],[Beneficio]],Tabla1[[#This Row],[Cédula]],Tabla1[[#This Row],[Monto]])","v":""},{"$f":"LEN(Tabla1[[#This Row],[Datos para txt]])","v":0}]
[null,null,null,null,{"$f":"rellenar(Tabla1[[#This Row],[Beneficio]],Tabla1[[#This Row],[Cédula]],Tabla1[[#This Row],[Monto]])","v":""},{"$f":"LEN(Tabla1[[#This Row],[Datos para txt]])","v":0}]
[null,null,null,null,{"$f":"rellenar(Tabla1[[#This Row],[Beneficio]],Tabla1[[#This Row],[Cédula]],Tabla1[[#This Row],[Monto]])","v":""},{"$f":"LEN(Tabla1[[#This Row],[Datos para txt]])","v":0}]
[null,null,null,null,{"$f":"rellenar(Tabla1[[#This Row],[Beneficio]],Tabla1[[#This Row],[Cédula]],Tabla1[[#This Row],[Monto]])","v":""},{"$f":"LEN(Tabla1[[#This Row],[Datos para txt]])","v":0}]
[null,null,null,null,{"$f":"rellenar(Tabla1[[#This Row],[Beneficio]],Tabla1[[#This Row],[Cédula]],Tabla1[[#This Row],[Monto]])","v":""},{"$f":"LEN(Tabla1[[#This Row],[Datos para txt]])","v":0}]
[null,null,null,null,{"$f":"rellenar(Tabla1[[#This Row],[Beneficio]],Tabla1[[#This Row],[Cédula]],Tabla1[[#This Row],[Monto]])","v":""},{"$f":"LEN(Tabla1[[#This Row],[Datos para txt]])","v":0}]
[null,null,null,null,{"$f":"rellenar(Tabla1[[#This Row],[Beneficio]],Tabla1[[#This Row],[Cédula]],Tabla1[[#This Row],[Monto]])","v":""},{"$f":"LEN(Tabla1[[#This Row],[Datos para txt]])","v":0}]
[null,null,null,null,{"$f":"rellenar(Tabla1[[#This Row],[Beneficio]],Tabla1[[#This Row],[Cédula]],Tabla1[[#This Row],[Monto]])","v":""},{"$f":"LEN(Tabla1[[#This Row],[Datos para txt]])","v":0}]
[null,null,null,null,{"$f":"rellenar(Tabla1[[#This Row],[Beneficio]],Tabla1[[#This Row],[Cédula]],Tabla1[[#This Row],[Monto]])","v":""},{"$f":"LEN(Tabla1[[#This Row],[Datos para txt]])","v":0}]
[null,null,null,null,{"$f":"rellenar(Tabla1[[#This Row],[Beneficio]],Tabla1[[#This Row],[Cédula]],Tabla1[[#This Row],[Monto]])","v":""},{"$f":"LEN(Tabla1[[#This Row],[Datos para txt]])","v":0}]
[null,null,null,null,{"$f":"rellenar(Tabla1[[#This Row],[Beneficio]],Tabla1[[#This Row],[Cédula]],Tabla1[[#This Row],[Monto]])","v":""},{"$f":"LEN(Tabla1[[#This Row],[Datos para txt]])","v":0}]
[null,null,null,null,{"$f":"rellenar(Tabla1[[#This Row],[Beneficio]],Tabla1[[#This Row],[Cédula]],Tabla1[[#This Row],[Monto]])","v":""},{"$f":"LEN(Tabla1[[#This Row],[Datos para txt]])","v":0}]
[null,null,null,null,{"$f":"rellenar(Tabla1[[#This Row],[Beneficio]],Tabla1[[#This Row],[Cédula]],Tabla1[[#This Row],[Monto]])","v":""},{"$f":"LEN(Tabla1[[#This Row],[Datos para txt]])","v":0}]
[null,null,null,null,{"$f":"rellenar(Tabla1[[#This Row],[Beneficio]],Tabla1[[#This Row],[Cédula]],Tabla1[[#This Row],[Monto]])","v":""},{"$f":"LEN(Tabla1[[#This Row],[Datos para txt]])","v":0}]
[null,null,null,null,{"$f":"rellenar(Tabla1[[#This Row],[Beneficio]],Tabla1[[#This Row],[Cédula]],Tabla1[[#This Row],[Monto]])","v":""},{"$f":"LEN(Tabla1[[#This Row],[Datos para txt]])","v":0}]
[null,null,null,null,{"$f":"rellenar(Tabla1[[#This Row],[Beneficio]],Tabla1[[#This Row],[Cédula]],Tabla1[[#This Row],[Monto]])","v":""},{"$f":"LEN(Tabla1[[#This Row],[Datos para txt]])","v":0}]
[null,null,null,null,{"$f":"rellenar(Tabla1[[#This Row],[Beneficio]],Tabla1[[#This Row],[Cédula]],Tabla1[[#This Row],[Monto]])","v":""},{"$f":"LEN(Tabla1[[#This Row],[Datos para txt]])","v":0}]
[null,null,null,null,{"$f":"rellenar(Tabla1[[#This Row],[Beneficio]],Tabla1[[#This Row],[Cédula]],Tabla1[[#This Row],[Monto]])","v":""},{"$f":"LEN(Tabla1[[#This Row],[Datos para txt]])","v":0}]
[null,null,null,null,{"$f":"rellenar(Tabla1[[#This Row],[Beneficio]],Tabla1[[#This Row],[Cédula]],Tabla1[[#This Row],[Monto]])","v":""},{"$f":"LEN(Tabla1[[#This Row],[Datos para txt]])","v":0}]
[null,null,null,null,{"$f":"rellenar(Tabla1[[#This Row],[Beneficio]],Tabla1[[#This Row],[Cédula]],Tabla1[[#This Row],[Monto]])","v":""},{"$f":"LEN(Tabla1[[#This Row],[Datos para txt]])","v":0}]
[null,null,null,null,{"$f":"rellenar(Tabla1[[#This Row],[Beneficio]],Tabla1[[#This Row],[Cédula]],Tabla1[[#This Row],[Monto]])","v":""},{"$f":"LEN(Tabla1[[#This Row],[Datos para txt]])","v":0}]
[null,null,null,null,{"$f":"rellenar(Tabla1[[#This Row],[Beneficio]],Tabla1[[#This Row],[Cédula]],Tabla1[[#This Row],[Monto]])","v":""},{"$f":"LEN(Tabla1[[#This Row],[Datos para txt]])","v":0}]
[null,null,null,null,{"$f":"rellenar(Tabla1[[#This Row],[Beneficio]],Tabla1[[#This Row],[Cédula]],Tabla1[[#This Row],[Monto]])","v":""},{"$f":"LEN(Tabla1[[#This Row],[Datos para txt]])","v":0}]
[null,null,null,null,{"$f":"rellenar(Tabla1[[#This Row],[Beneficio]],Tabla1[[#This Row],[Cédula]],Tabla1[[#This Row],[Monto]])","v":""},{"$f":"LEN(Tabla1[[#This Row],[Datos para txt]])","v":0}]
[null,null,null,null,{"$f":"rellenar(Tabla1[[#This Row],[Beneficio]],Tabla1[[#This Row],[Cédula]],Tabla1[[#This Row],[Monto]])","v":""},{"$f":"LEN(Tabla1[[#This Row],[Datos para txt]])","v":0}]
[null,null,null,null,{"$f":"rellenar(Tabla1[[#This Row],[Beneficio]],Tabla1[[#This Row],[Cédula]],Tabla1[[#This Row],[Monto]])","v":""},{"$f":"LEN(Tabla1[[#This Row],[Datos para txt]])","v":0}]
[null,null,null,null,{"$f":"rellenar(Tabla1[[#This Row],[Beneficio]],Tabla1[[#This Row],[Cédula]],Tabla1[[#This Row],[Monto]])","v":""},{"$f":"LEN(Tabla1[[#This Row],[Datos para txt]])","v":0}]
[null,null,null,null,{"$f":"rellenar(Tabla1[[#This Row],[Beneficio]],Tabla1[[#This Row],[Cédula]],Tabla1[[#This Row],[Monto]])","v":""},{"$f":"LEN(Tabla1[[#This Row],[Datos para txt]])","v":0}]
[null,null,null,null,{"$f":"rellenar(Tabla1[[#This Row],[Beneficio]],Tabla1[[#This Row],[Cédula]],Tabla1[[#This Row],[Monto]])","v":""},{"$f":"LEN(Tabla1[[#This Row],[Datos para txt]])","v":0}]
[null,null,null,null,{"$f":"rellenar(Tabla1[[#This Row],[Beneficio]],Tabla1[[#This Row],[Cédula]],Tabla1[[#This Row],[Monto]])","v":""},{"$f":"LEN(Tabla1[[#This Row],[Datos para txt]])","v":0}]
[null,null,null,null,{"$f":"rellenar(Tabla1[[#This Row],[Beneficio]],Tabla1[[#This Row],[Cédula]],Tabla1[[#This Row],[Monto]])","v":""},{"$f":"LEN(Tabla1[[#This Row],[Datos para txt]])","v":0}]
[null,null,null,null,{"$f":"rellenar(Tabla1[[#This Row],[Beneficio]],Tabla1[[#This Row],[Cédula]],Tabla1[[#This Row],[Monto]])","v":""},{"$f":"LEN(Tabla1[[#This Row],[Datos para txt]])","v":0}]
[null,null,null,null,{"$f":"rellenar(Tabla1[[#This Row],[Beneficio]],Tabla1[[#This Row],[Cédula]],Tabla1[[#This Row],[Monto]])","v":""},{"$f":"LEN(Tabla1[[#This Row],[Datos para txt]])","v":0}]
[null,null,null,null,{"$f":"rellenar(Tabla1[[#This Row],[Beneficio]],Tabla1[[#This Row],[Cédula]],Tabla1[[#This Row],[Monto]])","v":""},{"$f":"LEN(Tabla1[[#This Row],[Datos para txt]])","v":0}]
[null,null,null,null,{"$f":"rellenar(Tabla1[[#This Row],[Beneficio]],Tabla1[[#This Row],[Cédula]],Tabla1[[#This Row],[Monto]])","v":""},{"$f":"LEN(Tabla1[[#This Row],[Datos para txt]])","v":0}]
[null,null,null,null,{"$f":"rellenar(Tabla1[[#This Row],[Beneficio]],Tabla1[[#This Row],[Cédula]],Tabla1[[#This Row],[Monto]])","v":""},{"$f":"LEN(Tabla1[[#This Row],[Datos para txt]])","v":0}]
[null,null,null,null,{"$f":"rellenar(Tabla1[[#This Row],[Beneficio]],Tabla1[[#This Row],[Cédula]],Tabla1[[#This Row],[Monto]])","v":""},{"$f":"LEN(Tabla1[[#This Row],[Datos para txt]])","v":0}]
[null,null,null,null,{"$f":"rellenar(Tabla1[[#This Row],[Beneficio]],Tabla1[[#This Row],[Cédula]],Tabla1[[#This Row],[Monto]])","v":""},{"$f":"LEN(Tabla1[[#This Row],[Datos para txt]])","v":0}]
[null,null,null,null,{"$f":"rellenar(Tabla1[[#This Row],[Beneficio]],Tabla1[[#This Row],[Cédula]],Tabla1[[#This Row],[Monto]])","v":""},{"$f":"LEN(Tabla1[[#This Row],[Datos para txt]])","v":0}]
[null,null,null,null,{"$f":"rellenar(Tabla1[[#This Row],[Beneficio]],Tabla1[[#This Row],[Cédula]],Tabla1[[#This Row],[Monto]])","v":""},{"$f":"LEN(Tabla1[[#This Row],[Datos para txt]])","v":0}]
[null,null,null,null,{"$f":"rellenar(Tabla1[[#This Row],[Beneficio]],Tabla1[[#This Row],[Cédula]],Tabla1[[#This Row],[Monto]])","v":""},{"$f":"LEN(Tabla1[[#This Row],[Datos para txt]])","v":0}]
[null,null,null,null,{"$f":"rellenar(Tabla1[[#This Row],[Beneficio]],Tabla1[[#This Row],[Cédula]],Tabla1[[#This Row],[Monto]])","v":""},{"$f":"LEN(Tabla1[[#This Row],[Datos para txt]])","v":0}]
[null,null,null,null,{"$f":"rellenar(Tabla1[[#This Row],[Beneficio]],Tabla1[[#This Row],[Cédula]],Tabla1[[#This Row],[Monto]])","v":""},{"$f":"LEN(Tabla1[[#This Row],[Datos para txt]])","v":0}]
[null,null,null,null,{"$f":"rellenar(Tabla1[[#This Row],[Beneficio]],Tabla1[[#This Row],[Cédula]],Tabla1[[#This Row],[Monto]])","v":""},{"$f":"LEN(Tabla1[[#This Row],[Datos para txt]])","v":0}]
[null,null,null,null,{"$f":"rellenar(Tabla1[[#This Row],[Beneficio]],Tabla1[[#This Row],[Cédula]],Tabla1[[#This Row],[Monto]])","v":""},{"$f":"LEN(Tabla1[[#This Row],[Datos para txt]])","v":0}]
[null,null,null,null,{"$f":"rellenar(Tabla1[[#This Row],[Beneficio]],Tabla1[[#This Row],[Cédula]],Tabla1[[#This Row],[Monto]])","v":""},{"$f":"LEN(Tabla1[[#This Row],[Datos para txt]])","v":0}]
[null,null,null,null,{"$f":"rellenar(Tabla1[[#This Row],[Beneficio]],Tabla1[[#This Row],[Cédula]],Tabla1[[#This Row],[Monto]])","v":""},{"$f":"LEN(Tabla1[[#This Row],[Datos para txt]])","v":0}]
[null,null,null,null,{"$f":"rellenar(Tabla1[[#This Row],[Beneficio]],Tabla1[[#This Row],[Cédula]],Tabla1[[#This Row],[Monto]])","v":""},{"$f":"LEN(Tabla1[[#This Row],[Datos para txt]])","v":0}]
[null,null,null,null,{"$f":"rellenar(Tabla1[[#This Row],[Beneficio]],Tabla1[[#This Row],[Cédula]],Tabla1[[#This Row],[Monto]])","v":""},{"$f":"LEN(Tabla1[[#This Row],[Datos para txt]])","v":0}]
[null,null,null,null,{"$f":"rellenar(Tabla1[[#This Row],[Beneficio]],Tabla1[[#This Row],[Cédula]],Tabla1[[#This Row],[Monto]])","v":""},{"$f":"LEN(Tabla1[[#This Row],[Datos para txt]])","v":0}]
[null,null,null,null,{"$f":"rellenar(Tabla1[[#This Row],[Beneficio]],Tabla1[[#This Row],[Cédula]],Tabla1[[#This Row],[Monto]])","v":""},{"$f":"LEN(Tabla1[[#This Row],[Datos para txt]])","v":0}]
[null,null,null,null,{"$f":"rellenar(Tabla1[[#This Row],[Beneficio]],Tabla1[[#This Row],[Cédula]],Tabla1[[#This Row],[Monto]])","v":""},{"$f":"LEN(Tabla1[[#This Row],[Datos para txt]])","v":0}]
[null,null,null,null,{"$f":"rellenar(Tabla1[[#This Row],[Beneficio]],Tabla1[[#This Row],[Cédula]],Tabla1[[#This Row],[Monto]])","v":""},{"$f":"LEN(Tabla1[[#This Row],[Datos para txt]])","v":0}]
[null,null,null,null,{"$f":"rellenar(Tabla1[[#This Row],[Beneficio]],Tabla1[[#This Row],[Cédula]],Tabla1[[#This Row],[Monto]])","v":""},{"$f":"LEN(Tabla1[[#This Row],[Datos para txt]])","v":0}]
[null,null,null,null,{"$f":"rellenar(Tabla1[[#This Row],[Beneficio]],Tabla1[[#This Row],[Cédula]],Tabla1[[#This Row],[Monto]])","v":""},{"$f":"LEN(Tabla1[[#This Row],[Datos para txt]])","v":0}]
[null,null,null,null,{"$f":"rellenar(Tabla1[[#This Row],[Beneficio]],Tabla1[[#This Row],[Cédula]],Tabla1[[#This Row],[Monto]])","v":""},{"$f":"LEN(Tabla1[[#This Row],[Datos para txt]])","v":0}]
[null,null,null,null,{"$f":"rellenar(Tabla1[[#This Row],[Beneficio]],Tabla1[[#This Row],[Cédula]],Tabla1[[#This Row],[Monto]])","v":""},{"$f":"LEN(Tabla1[[#This Row],[Datos para txt]])","v":0}]
[null,null,null,null,{"$f":"rellenar(Tabla1[[#This Row],[Beneficio]],Tabla1[[#This Row],[Cédula]],Tabla1[[#This Row],[Monto]])","v":""},{"$f":"LEN(Tabla1[[#This Row],[Datos para txt]])","v":0}]
[null,null,null,null,{"$f":"rellenar(Tabla1[[#This Row],[Beneficio]],Tabla1[[#This Row],[Cédula]],Tabla1[[#This Row],[Monto]])","v":""},{"$f":"LEN(Tabla1[[#This Row],[Datos para txt]])","v":0}]
[null,null,null,null,{"$f":"rellenar(Tabla1[[#This Row],[Beneficio]],Tabla1[[#This Row],[Cédula]],Tabla1[[#This Row],[Monto]])","v":""},{"$f":"LEN(Tabla1[[#This Row],[Datos para txt]])","v":0}]
[null,null,null,null,{"$f":"rellenar(Tabla1[[#This Row],[Beneficio]],Tabla1[[#This Row],[Cédula]],Tabla1[[#This Row],[Monto]])","v":""},{"$f":"LEN(Tabla1[[#This Row],[Datos para txt]])","v":0}]
[null,null,null,null,{"$f":"rellenar(Tabla1[[#This Row],[Beneficio]],Tabla1[[#This Row],[Cédula]],Tabla1[[#This Row],[Monto]])","v":""},{"$f":"LEN(Tabla1[[#This Row],[Datos para txt]])","v":0}]
[null,null,null,null,{"$f":"rellenar(Tabla1[[#This Row],[Beneficio]],Tabla1[[#This Row],[Cédula]],Tabla1[[#This Row],[Monto]])","v":""},{"$f":"LEN(Tabla1[[#This Row],[Datos para txt]])","v":0}]
[null,null,null,null,{"$f":"rellenar(Tabla1[[#This Row],[Beneficio]],Tabla1[[#This Row],[Cédula]],Tabla1[[#This Row],[Monto]])","v":""},{"$f":"LEN(Tabla1[[#This Row],[Datos para txt]])","v":0}]
[null,null,null,null,{"$f":"rellenar(Tabla1[[#This Row],[Beneficio]],Tabla1[[#This Row],[Cédula]],Tabla1[[#This Row],[Monto]])","v":""},{"$f":"LEN(Tabla1[[#This Row],[Datos para txt]])","v":0}]
[null,null,null,null,{"$f":"rellenar(Tabla1[[#This Row],[Beneficio]],Tabla1[[#This Row],[Cédula]],Tabla1[[#This Row],[Monto]])","v":""},{"$f":"LEN(Tabla1[[#This Row],[Datos para txt]])","v":0}]
[null,null,null,null,{"$f":"rellenar(Tabla1[[#This Row],[Beneficio]],Tabla1[[#This Row],[Cédula]],Tabla1[[#This Row],[Monto]])","v":""},{"$f":"LEN(Tabla1[[#This Row],[Datos para txt]])","v":0}]
[null,null,null,null,{"$f":"rellenar(Tabla1[[#This Row],[Beneficio]],Tabla1[[#This Row],[Cédula]],Tabla1[[#This Row],[Monto]])","v":""},{"$f":"LEN(Tabla1[[#This Row],[Datos para txt]])","v":0}]
[null,null,null,null,{"$f":"rellenar(Tabla1[[#This Row],[Beneficio]],Tabla1[[#This Row],[Cédula]],Tabla1[[#This Row],[Monto]])","v":""},{"$f":"LEN(Tabla1[[#This Row],[Datos para txt]])","v":0}]
[null,null,null,null,{"$f":"rellenar(Tabla1[[#This Row],[Beneficio]],Tabla1[[#This Row],[Cédula]],Tabla1[[#This Row],[Monto]])","v":""},{"$f":"LEN(Tabla1[[#This Row],[Datos para txt]])","v":0}]
[null,null,null,null,{"$f":"rellenar(Tabla1[[#This Row],[Beneficio]],Tabla1[[#This Row],[Cédula]],Tabla1[[#This Row],[Monto]])","v":""},{"$f":"LEN(Tabla1[[#This Row],[Datos para txt]])","v":0}]
[null,null,null,null,{"$f":"rellenar(Tabla1[[#This Row],[Beneficio]],Tabla1[[#This Row],[Cédula]],Tabla1[[#This Row],[Monto]])","v":""},{"$f":"LEN(Tabla1[[#This Row],[Datos para txt]])","v":0}]
[null,null,null,null,{"$f":"rellenar(Tabla1[[#This Row],[Beneficio]],Tabla1[[#This Row],[Cédula]],Tabla1[[#This Row],[Monto]])","v":""},{"$f":"LEN(Tabla1[[#This Row],[Datos para txt]])","v":0}]
[null,null,null,null,{"$f":"rellenar(Tabla1[[#This Row],[Beneficio]],Tabla1[[#This Row],[Cédula]],Tabla1[[#This Row],[Monto]])","v":""},{"$f":"LEN(Tabla1[[#This Row],[Datos para txt]])","v":0}]
[null,null,null,null,{"$f":"rellenar(Tabla1[[#This Row],[Beneficio]],Tabla1[[#This Row],[Cédula]],Tabla1[[#This Row],[Monto]])","v":""},{"$f":"LEN(Tabla1[[#This Row],[Datos para txt]])","v":0}]
[null,null,null,null,{"$f":"rellenar(Tabla1[[#This Row],[Beneficio]],Tabla1[[#This Row],[Cédula]],Tabla1[[#This Row],[Monto]])","v":""},{"$f":"LEN(Tabla1[[#This Row],[Datos para txt]])","v":0}]
[null,null,null,null,{"$f":"rellenar(Tabla1[[#This Row],[Beneficio]],Tabla1[[#This Row],[Cédula]],Tabla1[[#This Row],[Monto]])","v":""},{"$f":"LEN(Tabla1[[#This Row],[Datos para txt]])","v":0}]
[null,null,null,null,{"$f":"rellenar(Tabla1[[#This Row],[Beneficio]],Tabla1[[#This Row],[Cédula]],Tabla1[[#This Row],[Monto]])","v":""},{"$f":"LEN(Tabla1[[#This Row],[Datos para txt]])","v":0}]
[null,null,null,null,{"$f":"rellenar(Tabla1[[#This Row],[Beneficio]],Tabla1[[#This Row],[Cédula]],Tabla1[[#This Row],[Monto]])","v":""},{"$f":"LEN(Tabla1[[#This Row],[Datos para txt]])","v":0}]
[null,null,null,null,{"$f":"rellenar(Tabla1[[#This Row],[Beneficio]],Tabla1[[#This Row],[Cédula]],Tabla1[[#This Row],[Monto]])","v":""},{"$f":"LEN(Tabla1[[#This Row],[Datos para txt]])","v":0}]
[null,null,null,null,{"$f":"rellenar(Tabla1[[#This Row],[Beneficio]],Tabla1[[#This Row],[Cédula]],Tabla1[[#This Row],[Monto]])","v":""},{"$f":"LEN(Tabla1[[#This Row],[Datos para txt]])","v":0}]
[null,null,null,null,{"$f":"rellenar(Tabla1[[#This Row],[Beneficio]],Tabla1[[#This Row],[Cédula]],Tabla1[[#This Row],[Monto]])","v":""},{"$f":"LEN(Tabla1[[#This Row],[Datos para txt]])","v":0}]
[null,null,null,null,{"$f":"rellenar(Tabla1[[#This Row],[Beneficio]],Tabla1[[#This Row],[Cédula]],Tabla1[[#This Row],[Monto]])","v":""},{"$f":"LEN(Tabla1[[#This Row],[Datos para txt]])","v":0}]
[null,null,null,null,{"$f":"rellenar(Tabla1[[#This Row],[Beneficio]],Tabla1[[#This Row],[Cédula]],Tabla1[[#This Row],[Monto]])","v":""},{"$f":"LEN(Tabla1[[#This Row],[Datos para txt]])","v":0}]
[null,null,null,null,{"$f":"rellenar(Tabla1[[#This Row],[Beneficio]],Tabla1[[#This Row],[Cédula]],Tabla1[[#This Row],[Monto]])","v":""},{"$f":"LEN(Tabla1[[#This Row],[Datos para txt]])","v":0}]
[null,null,null,null,{"$f":"rellenar(Tabla1[[#This Row],[Beneficio]],Tabla1[[#This Row],[Cédula]],Tabla1[[#This Row],[Monto]])","v":""},{"$f":"LEN(Tabla1[[#This Row],[Datos para txt]])","v":0}]
[null,null,null,null,{"$f":"rellenar(Tabla1[[#This Row],[Beneficio]],Tabla1[[#This Row],[Cédula]],Tabla1[[#This Row],[Monto]])","v":""},{"$f":"LEN(Tabla1[[#This Row],[Datos para txt]])","v":0}]
[null,null,null,null,{"$f":"rellenar(Tabla1[[#This Row],[Beneficio]],Tabla1[[#This Row],[Cédula]],Tabla1[[#This Row],[Monto]])","v":""},{"$f":"LEN(Tabla1[[#This Row],[Datos para txt]])","v":0}]
[null,null,null,null,{"$f":"rellenar(Tabla1[[#This Row],[Beneficio]],Tabla1[[#This Row],[Cédula]],Tabla1[[#This Row],[Monto]])","v":""},{"$f":"LEN(Tabla1[[#This Row],[Datos para txt]])","v":0}]
[null,null,null,null,{"$f":"rellenar(Tabla1[[#This Row],[Beneficio]],Tabla1[[#This Row],[Cédula]],Tabla1[[#This Row],[Monto]])","v":""},{"$f":"LEN(Tabla1[[#This Row],[Datos para txt]])","v":0}]
[null,null,null,null,{"$f":"rellenar(Tabla1[[#This Row],[Beneficio]],Tabla1[[#This Row],[Cédula]],Tabla1[[#This Row],[Monto]])","v":""},{"$f":"LEN(Tabla1[[#This Row],[Datos para txt]])","v":0}]
[null,null,null,null,{"$f":"rellenar(Tabla1[[#This Row],[Beneficio]],Tabla1[[#This Row],[Cédula]],Tabla1[[#This Row],[Monto]])","v":""},{"$f":"LEN(Tabla1[[#This Row],[Datos para txt]])","v":0}]
[null,null,null,null,{"$f":"rellenar(Tabla1[[#This Row],[Beneficio]],Tabla1[[#This Row],[Cédula]],Tabla1[[#This Row],[Monto]])","v":""},{"$f":"LEN(Tabla1[[#This Row],[Datos para txt]])","v":0}]
[null,null,null,null,{"$f":"rellenar(Tabla1[[#This Row],[Beneficio]],Tabla1[[#This Row],[Cédula]],Tabla1[[#This Row],[Monto]])","v":""},{"$f":"LEN(Tabla1[[#This Row],[Datos para txt]])","v":0}]
[null,null,null,null,{"$f":"rellenar(Tabla1[[#This Row],[Beneficio]],Tabla1[[#This Row],[Cédula]],Tabla1[[#This Row],[Monto]])","v":""},{"$f":"LEN(Tabla1[[#This Row],[Datos para txt]])","v":0}]
[null,null,null,null,{"$f":"rellenar(Tabla1[[#This Row],[Beneficio]],Tabla1[[#This Row],[Cédula]],Tabla1[[#This Row],[Monto]])","v":""},{"$f":"LEN(Tabla1[[#This Row],[Datos para txt]])","v":0}]
[null,null,null,null,{"$f":"rellenar(Tabla1[[#This Row],[Beneficio]],Tabla1[[#This Row],[Cédula]],Tabla1[[#This Row],[Monto]])","v":""},{"$f":"LEN(Tabla1[[#This Row],[Datos para txt]])","v":0}]
[null,null,null,null,{"$f":"rellenar(Tabla1[[#This Row],[Beneficio]],Tabla1[[#This Row],[Cédula]],Tabla1[[#This Row],[Monto]])","v":""},{"$f":"LEN(Tabla1[[#This Row],[Datos para txt]])","v":0}]
[null,null,null,null,{"$f":"rellenar(Tabla1[[#This Row],[Beneficio]],Tabla1[[#This Row],[Cédula]],Tabla1[[#This Row],[Monto]])","v":""},{"$f":"LEN(Tabla1[[#This Row],[Datos para txt]])","v":0}]
[null,null,null,null,{"$f":"rellenar(Tabla1[[#This Row],[Beneficio]],Tabla1[[#This Row],[Cédula]],Tabla1[[#This Row],[Monto]])","v":""},{"$f":"LEN(Tabla1[[#This Row],[Datos para txt]])","v":0}]
[null,null,null,null,{"$f":"rellenar(Tabla1[[#This Row],[Beneficio]],Tabla1[[#This Row],[Cédula]],Tabla1[[#This Row],[Monto]])","v":""},{"$f":"LEN(Tabla1[[#This Row],[Datos para txt]])","v":0}]
[null,null,null,null,{"$f":"rellenar(Tabla1[[#This Row],[Beneficio]],Tabla1[[#This Row],[Cédula]],Tabla1[[#This Row],[Monto]])","v":""},{"$f":"LEN(Tabla1[[#This Row],[Datos para txt]])","v":0}]
[null,null,null,null,{"$f":"rellenar(Tabla1[[#This Row],[Beneficio]],Tabla1[[#This Row],[Cédula]],Tabla1[[#This Row],[Monto]])","v":""},{"$f":"LEN(Tabla1[[#This Row],[Datos para txt]])","v":0}]
[null,null,null,null,{"$f":"rellenar(Tabla1[[#This Row],[Beneficio]],Tabla1[[#This Row],[Cédula]],Tabla1[[#This Row],[Monto]])","v":""},{"$f":"LEN(Tabla1[[#This Row],[Datos para txt]])","v":0}]
[null,null,null,null,{"$f":"rellenar(Tabla1[[#This Row],[Beneficio]],Tabla1[[#This Row],[Cédula]],Tabla1[[#This Row],[Monto]])","v":""},{"$f":"LEN(Tabla1[[#This Row],[Datos para txt]])","v":0}]
[null,null,null,null,{"$f":"rellenar(Tabla1[[#This Row],[Beneficio]],Tabla1[[#This Row],[Cédula]],Tabla1[[#This Row],[Monto]])","v":""},{"$f":"LEN(Tabla1[[#This Row],[Datos para txt]])","v":0}]
[null,null,null,null,{"$f":"rellenar(Tabla1[[#This Row],[Beneficio]],Tabla1[[#This Row],[Cédula]],Tabla1[[#This Row],[Monto]])","v":""},{"$f":"LEN(Tabla1[[#This Row],[Datos para txt]])","v":0}]
[null,null,null,null,{"$f":"rellenar(Tabla1[[#This Row],[Beneficio]],Tabla1[[#This Row],[Cédula]],Tabla1[[#This Row],[Monto]])","v":""},{"$f":"LEN(Tabla1[[#This Row],[Datos para txt]])","v":0}]
[null,null,null,null,{"$f":"rellenar(Tabla1[[#This Row],[Beneficio]],Tabla1[[#This Row],[Cédula]],Tabla1[[#This Row],[Monto]])","v":""},{"$f":"LEN(Tabla1[[#This Row],[Datos para txt]])","v":0}]
[null,null,null,null,{"$f":"rellenar(Tabla1[[#This Row],[Beneficio]],Tabla1[[#This Row],[Cédula]],Tabla1[[#This Row],[Monto]])","v":""},{"$f":"LEN(Tabla1[[#This Row],[Datos para txt]])","v":0}]
[null,null,null,null,{"$f":"rellenar(Tabla1[[#This Row],[Beneficio]],Tabla1[[#This Row],[Cédula]],Tabla1[[#This Row],[Monto]])","v":""},{"$f":"LEN(Tabla1[[#This Row],[Datos para txt]])","v":0}]
[null,null,null,null,{"$f":"rellenar(Tabla1[[#This Row],[Beneficio]],Tabla1[[#This Row],[Cédula]],Tabla1[[#This Row],[Monto]])","v":""},{"$f":"LEN(Tabla1[[#This Row],[Datos para txt]])","v":0}]
[null,null,null,null,{"$f":"rellenar(Tabla1[[#This Row],[Beneficio]],Tabla1[[#This Row],[Cédula]],Tabla1[[#This Row],[Monto]])","v":""},{"$f":"LEN(Tabla1[[#This Row],[Datos para txt]])","v":0}]
[null,null,null,null,{"$f":"rellenar(Tabla1[[#This Row],[Beneficio]],Tabla1[[#This Row],[Cédula]],Tabla1[[#This Row],[Monto]])","v":""},{"$f":"LEN(Tabla1[[#This Row],[Datos para txt]])","v":0}]
[null,null,null,null,{"$f":"rellenar(Tabla1[[#This Row],[Beneficio]],Tabla1[[#This Row],[Cédula]],Tabla1[[#This Row],[Monto]])","v":""},{"$f":"LEN(Tabla1[[#This Row],[Datos para txt]])","v":0}]
[null,null,null,null,{"$f":"rellenar(Tabla1[[#This Row],[Beneficio]],Tabla1[[#This Row],[Cédula]],Tabla1[[#This Row],[Monto]])","v":""},{"$f":"LEN(Tabla1[[#This Row],[Datos para txt]])","v":0}]
[null,null,null,null,{"$f":"rellenar(Tabla1[[#This Row],[Beneficio]],Tabla1[[#This Row],[Cédula]],Tabla1[[#This Row],[Monto]])","v":""},{"$f":"LEN(Tabla1[[#This Row],[Datos para txt]])","v":0}]
[null,null,null,null,{"$f":"rellenar(Tabla1[[#This Row],[Beneficio]],Tabla1[[#This Row],[Cédula]],Tabla1[[#This Row],[Monto]])","v":""},{"$f":"LEN(Tabla1[[#This Row],[Datos para txt]])","v":0}]
[null,null,null,null,{"$f":"rellenar(Tabla1[[#This Row],[Beneficio]],Tabla1[[#This Row],[Cédula]],Tabla1[[#This Row],[Monto]])","v":""},{"$f":"LEN(Tabla1[[#This Row],[Datos para txt]])","v":0}]
[null,null,null,null,{"$f":"rellenar(Tabla1[[#This Row],[Beneficio]],Tabla1[[#This Row],[Cédula]],Tabla1[[#This Row],[Monto]])","v":""},{"$f":"LEN(Tabla1[[#This Row],[Datos para txt]])","v":0}]
[null,null,null,null,{"$f":"rellenar(Tabla1[[#This Row],[Beneficio]],Tabla1[[#This Row],[Cédula]],Tabla1[[#This Row],[Monto]])","v":""},{"$f":"LEN(Tabla1[[#This Row],[Datos para txt]])","v":0}]
[null,null,null,null,{"$f":"rellenar(Tabla1[[#This Row],[Beneficio]],Tabla1[[#This Row],[Cédula]],Tabla1[[#This Row],[Monto]])","v":""},{"$f":"LEN(Tabla1[[#This Row],[Datos para txt]])","v":0}]
[null,null,null,null,{"$f":"rellenar(Tabla1[[#This Row],[Beneficio]],Tabla1[[#This Row],[Cédula]],Tabla1[[#This Row],[Monto]])","v":""},{"$f":"LEN(Tabla1[[#This Row],[Datos para txt]])","v":0}]
[null,null,null,null,{"$f":"rellenar(Tabla1[[#This Row],[Beneficio]],Tabla1[[#This Row],[Cédula]],Tabla1[[#This Row],[Monto]])","v":""},{"$f":"LEN(Tabla1[[#This Row],[Datos para txt]])","v":0}]
[null,null,null,null,{"$f":"rellenar(Tabla1[[#This Row],[Beneficio]],Tabla1[[#This Row],[Cédula]],Tabla1[[#This Row],[Monto]])","v":""},{"$f":"LEN(Tabla1[[#This Row],[Datos para txt]])","v":0}]
[null,null,null,null,{"$f":"rellenar(Tabla1[[#This Row],[Beneficio]],Tabla1[[#This Row],[Cédula]],Tabla1[[#This Row],[Monto]])","v":""},{"$f":"LEN(Tabla1[[#This Row],[Datos para txt]])","v":0}]
[null,null,null,null,{"$f":"rellenar(Tabla1[[#This Row],[Beneficio]],Tabla1[[#This Row],[Cédula]],Tabla1[[#This Row],[Monto]])","v":""},{"$f":"LEN(Tabla1[[#This Row],[Datos para txt]])","v":0}]
[null,null,null,null,{"$f":"rellenar(Tabla1[[#This Row],[Beneficio]],Tabla1[[#This Row],[Cédula]],Tabla1[[#This Row],[Monto]])","v":""},{"$f":"LEN(Tabla1[[#This Row],[Datos para txt]])","v":0}]
[null,null,null,null,{"$f":"rellenar(Tabla1[[#This Row],[Beneficio]],Tabla1[[#This Row],[Cédula]],Tabla1[[#This Row],[Monto]])","v":""},{"$f":"LEN(Tabla1[[#This Row],[Datos para txt]])","v":0}]
[null,null,null,null,{"$f":"rellenar(Tabla1[[#This Row],[Beneficio]],Tabla1[[#This Row],[Cédula]],Tabla1[[#This Row],[Monto]])","v":""},{"$f":"LEN(Tabla1[[#This Row],[Datos para txt]])","v":0}]
[null,null,null,null,{"$f":"rellenar(Tabla1[[#This Row],[Beneficio]],Tabla1[[#This Row],[Cédula]],Tabla1[[#This Row],[Monto]])","v":""},{"$f":"LEN(Tabla1[[#This Row],[Datos para txt]])","v":0}]
[null,null,null,null,{"$f":"rellenar(Tabla1[[#This Row],[Beneficio]],Tabla1[[#This Row],[Cédula]],Tabla1[[#This Row],[Monto]])","v":""},{"$f":"LEN(Tabla1[[#This Row],[Datos para txt]])","v":0}]
[null,null,null,null,{"$f":"rellenar(Tabla1[[#This Row],[Beneficio]],Tabla1[[#This Row],[Cédula]],Tabla1[[#This Row],[Monto]])","v":""},{"$f":"LEN(Tabla1[[#This Row],[Datos para txt]])","v":0}]
[null,null,null,null,{"$f":"rellenar(Tabla1[[#This Row],[Beneficio]],Tabla1[[#This Row],[Cédula]],Tabla1[[#This Row],[Monto]])","v":""},{"$f":"LEN(Tabla1[[#This Row],[Datos para txt]])","v":0}]
[null,null,null,null,{"$f":"rellenar(Tabla1[[#This Row],[Beneficio]],Tabla1[[#This Row],[Cédula]],Tabla1[[#This Row],[Monto]])","v":""},{"$f":"LEN(Tabla1[[#This Row],[Datos para txt]])","v":0}]
[null,null,null,null,{"$f":"rellenar(Tabla1[[#This Row],[Beneficio]],Tabla1[[#This Row],[Cédula]],Tabla1[[#This Row],[Monto]])","v":""},{"$f":"LEN(Tabla1[[#This Row],[Datos para txt]])","v":0}]
[null,null,null,null,{"$f":"rellenar(Tabla1[[#This Row],[Beneficio]],Tabla1[[#This Row],[Cédula]],Tabla1[[#This Row],[Monto]])","v":""},{"$f":"LEN(Tabla1[[#This Row],[Datos para txt]])","v":0}]
[null,null,null,null,{"$f":"rellenar(Tabla1[[#This Row],[Beneficio]],Tabla1[[#This Row],[Cédula]],Tabla1[[#This Row],[Monto]])","v":""},{"$f":"LEN(Tabla1[[#This Row],[Datos para txt]])","v":0}]
[null,null,null,null,{"$f":"rellenar(Tabla1[[#This Row],[Beneficio]],Tabla1[[#This Row],[Cédula]],Tabla1[[#This Row],[Monto]])","v":""},{"$f":"LEN(Tabla1[[#This Row],[Datos para txt]])","v":0}]
[null,null,null,null,{"$f":"rellenar(Tabla1[[#This Row],[Beneficio]],Tabla1[[#This Row],[Cédula]],Tabla1[[#This Row],[Monto]])","v":""},{"$f":"LEN(Tabla1[[#This Row],[Datos para txt]])","v":0}]
[null,null,null,null,{"$f":"rellenar(Tabla1[[#This Row],[Beneficio]],Tabla1[[#This Row],[Cédula]],Tabla1[[#This Row],[Monto]])","v":""},{"$f":"LEN(Tabla1[[#This Row],[Datos para txt]])","v":0}]
[null,null,null,null,{"$f":"rellenar(Tabla1[[#This Row],[Beneficio]],Tabla1[[#This Row],[Cédula]],Tabla1[[#This Row],[Monto]])","v":""},{"$f":"LEN(Tabla1[[#This Row],[Datos para txt]])","v":0}]
[null,null,null,null,{"$f":"rellenar(Tabla1[[#This Row],[Beneficio]],Tabla1[[#This Row],[Cédula]],Tabla1[[#This Row],[Monto]])","v":""},{"$f":"LEN(Tabla1[[#This Row],[Datos para txt]])","v":0}]
[null,null,null,null,{"$f":"rellenar(Tabla1[[#This Row],[Beneficio]],Tabla1[[#This Row],[Cédula]],Tabla1[[#This Row],[Monto]])","v":""},{"$f":"LEN(Tabla1[[#This Row],[Datos para txt]])","v":0}]
[null,null,null,null,{"$f":"rellenar(Tabla1[[#This Row],[Beneficio]],Tabla1[[#This Row],[Cédula]],Tabla1[[#This Row],[Monto]])","v":""},{"$f":"LEN(Tabla1[[#This Row],[Datos para txt]])","v":0}]
[null,null,null,null,{"$f":"rellenar(Tabla1[[#This Row],[Beneficio]],Tabla1[[#This Row],[Cédula]],Tabla1[[#This Row],[Monto]])","v":""},{"$f":"LEN(Tabla1[[#This Row],[Datos para txt]])","v":0}]
[null,null,null,null,{"$f":"rellenar(Tabla1[[#This Row],[Beneficio]],Tabla1[[#This Row],[Cédula]],Tabla1[[#This Row],[Monto]])","v":""},{"$f":"LEN(Tabla1[[#This Row],[Datos para txt]])","v":0}]
[null,null,null,null,{"$f":"rellenar(Tabla1[[#This Row],[Beneficio]],Tabla1[[#This Row],[Cédula]],Tabla1[[#This Row],[Monto]])","v":""},{"$f":"LEN(Tabla1[[#This Row],[Datos para txt]])","v":0}]
[null,null,null,null,{"$f":"rellenar(Tabla1[[#This Row],[Beneficio]],Tabla1[[#This Row],[Cédula]],Tabla1[[#This Row],[Monto]])","v":""},{"$f":"LEN(Tabla1[[#This Row],[Datos para txt]])","v":0}]
[null,null,null,null,{"$f":"rellenar(Tabla1[[#This Row],[Beneficio]],Tabla1[[#This Row],[Cédula]],Tabla1[[#This Row],[Monto]])","v":""},{"$f":"LEN(Tabla1[[#This Row],[Datos para txt]])","v":0}]
[null,null,null,null,{"$f":"rellenar(Tabla1[[#This Row],[Beneficio]],Tabla1[[#This Row],[Cédula]],Tabla1[[#This Row],[Monto]])","v":""},{"$f":"LEN(Tabla1[[#This Row],[Datos para txt]])","v":0}]
[null,null,null,null,{"$f":"rellenar(Tabla1[[#This Row],[Beneficio]],Tabla1[[#This Row],[Cédula]],Tabla1[[#This Row],[Monto]])","v":""},{"$f":"LEN(Tabla1[[#This Row],[Datos para txt]])","v":0}]
[null,null,null,null,{"$f":"rellenar(Tabla1[[#This Row],[Beneficio]],Tabla1[[#This Row],[Cédula]],Tabla1[[#This Row],[Monto]])","v":""},{"$f":"LEN(Tabla1[[#This Row],[Datos para txt]])","v":0}]
[null,null,null,null,{"$f":"rellenar(Tabla1[[#This Row],[Beneficio]],Tabla1[[#This Row],[Cédula]],Tabla1[[#This Row],[Monto]])","v":""},{"$f":"LEN(Tabla1[[#This Row],[Datos para txt]])","v":0}]
[null,null,null,null,{"$f":"rellenar(Tabla1[[#This Row],[Beneficio]],Tabla1[[#This Row],[Cédula]],Tabla1[[#This Row],[Monto]])","v":""},{"$f":"LEN(Tabla1[[#This Row],[Datos para txt]])","v":0}]
[null,null,null,null,{"$f":"rellenar(Tabla1[[#This Row],[Beneficio]],Tabla1[[#This Row],[Cédula]],Tabla1[[#This Row],[Monto]])","v":""},{"$f":"LEN(Tabla1[[#This Row],[Datos para txt]])","v":0}]
[null,null,null,null,{"$f":"rellenar(Tabla1[[#This Row],[Beneficio]],Tabla1[[#This Row],[Cédula]],Tabla1[[#This Row],[Monto]])","v":""},{"$f":"LEN(Tabla1[[#This Row],[Datos para txt]])","v":0}]
[null,null,null,null,{"$f":"rellenar(Tabla1[[#This Row],[Beneficio]],Tabla1[[#This Row],[Cédula]],Tabla1[[#This Row],[Monto]])","v":""},{"$f":"LEN(Tabla1[[#This Row],[Datos para txt]])","v":0}]
[null,null,null,null,{"$f":"rellenar(Tabla1[[#This Row],[Beneficio]],Tabla1[[#This Row],[Cédula]],Tabla1[[#This Row],[Monto]])","v":""},{"$f":"LEN(Tabla1[[#This Row],[Datos para txt]])","v":0}]
[null,null,null,null,{"$f":"rellenar(Tabla1[[#This Row],[Beneficio]],Tabla1[[#This Row],[Cédula]],Tabla1[[#This Row],[Monto]])","v":""},{"$f":"LEN(Tabla1[[#This Row],[Datos para txt]])","v":0}]
[null,null,null,null,{"$f":"rellenar(Tabla1[[#This Row],[Beneficio]],Tabla1[[#This Row],[Cédula]],Tabla1[[#This Row],[Monto]])","v":""},{"$f":"LEN(Tabla1[[#This Row],[Datos para txt]])","v":0}]
[null,null,null,null,{"$f":"rellenar(Tabla1[[#This Row],[Beneficio]],Tabla1[[#This Row],[Cédula]],Tabla1[[#This Row],[Monto]])","v":""},{"$f":"LEN(Tabla1[[#This Row],[Datos para txt]])","v":0}]
[null,null,null,null,{"$f":"rellenar(Tabla1[[#This Row],[Beneficio]],Tabla1[[#This Row],[Cédula]],Tabla1[[#This Row],[Monto]])","v":""},{"$f":"LEN(Tabla1[[#This Row],[Datos para txt]])","v":0}]
[null,null,null,null,{"$f":"rellenar(Tabla1[[#This Row],[Beneficio]],Tabla1[[#This Row],[Cédula]],Tabla1[[#This Row],[Monto]])","v":""},{"$f":"LEN(Tabla1[[#This Row],[Datos para txt]])","v":0}]
[null,null,null,null,{"$f":"rellenar(Tabla1[[#This Row],[Beneficio]],Tabla1[[#This Row],[Cédula]],Tabla1[[#This Row],[Monto]])","v":""},{"$f":"LEN(Tabla1[[#This Row],[Datos para txt]])","v":0}]
[null,null,null,null,{"$f":"rellenar(Tabla1[[#This Row],[Beneficio]],Tabla1[[#This Row],[Cédula]],Tabla1[[#This Row],[Monto]])","v":""},{"$f":"LEN(Tabla1[[#This Row],[Datos para txt]])","v":0}]
[null,null,null,null,{"$f":"rellenar(Tabla1[[#This Row],[Beneficio]],Tabla1[[#This Row],[Cédula]],Tabla1[[#This Row],[Monto]])","v":""},{"$f":"LEN(Tabla1[[#This Row],[Datos para txt]])","v":0}]
[null,null,null,null,{"$f":"rellenar(Tabla1[[#This Row],[Beneficio]],Tabla1[[#This Row],[Cédula]],Tabla1[[#This Row],[Monto]])","v":""},{"$f":"LEN(Tabla1[[#This Row],[Datos para txt]])","v":0}]
[null,null,null,null,{"$f":"rellenar(Tabla1[[#This Row],[Beneficio]],Tabla1[[#This Row],[Cédula]],Tabla1[[#This Row],[Monto]])","v":""},{"$f":"LEN(Tabla1[[#This Row],[Datos para txt]])","v":0}]
[null,null,null,null,{"$f":"rellenar(Tabla1[[#This Row],[Beneficio]],Tabla1[[#This Row],[Cédula]],Tabla1[[#This Row],[Monto]])","v":""},{"$f":"LEN(Tabla1[[#This Row],[Datos para txt]])","v":0}]
[null,null,null,null,{"$f":"rellenar(Tabla1[[#This Row],[Beneficio]],Tabla1[[#This Row],[Cédula]],Tabla1[[#This Row],[Monto]])","v":""},{"$f":"LEN(Tabla1[[#This Row],[Datos para txt]])","v":0}]
[null,null,null,null,{"$f":"rellenar(Tabla1[[#This Row],[Beneficio]],Tabla1[[#This Row],[Cédula]],Tabla1[[#This Row],[Monto]])","v":""},{"$f":"LEN(Tabla1[[#This Row],[Datos para txt]])","v":0}]
[null,null,null,null,{"$f":"rellenar(Tabla1[[#This Row],[Beneficio]],Tabla1[[#This Row],[Cédula]],Tabla1[[#This Row],[Monto]])","v":""},{"$f":"LEN(Tabla1[[#This Row],[Datos para txt]])","v":0}]
[null,null,null,null,{"$f":"rellenar(Tabla1[[#This Row],[Beneficio]],Tabla1[[#This Row],[Cédula]],Tabla1[[#This Row],[Monto]])","v":""},{"$f":"LEN(Tabla1[[#This Row],[Datos para txt]])","v":0}]
[null,null,null,null,{"$f":"rellenar(Tabla1[[#This Row],[Beneficio]],Tabla1[[#This Row],[Cédula]],Tabla1[[#This Row],[Monto]])","v":""},{"$f":"LEN(Tabla1[[#This Row],[Datos para txt]])","v":0}]
[null,null,null,null,{"$f":"rellenar(Tabla1[[#This Row],[Beneficio]],Tabla1[[#This Row],[Cédula]],Tabla1[[#This Row],[Monto]])","v":""},{"$f":"LEN(Tabla1[[#This Row],[Datos para txt]])","v":0}]
[null,null,null,null,{"$f":"rellenar(Tabla1[[#This Row],[Beneficio]],Tabla1[[#This Row],[Cédula]],Tabla1[[#This Row],[Monto]])","v":""},{"$f":"LEN(Tabla1[[#This Row],[Datos para txt]])","v":0}]
[null,null,null,null,{"$f":"rellenar(Tabla1[[#This Row],[Beneficio]],Tabla1[[#This Row],[Cédula]],Tabla1[[#This Row],[Monto]])","v":""},{"$f":"LEN(Tabla1[[#This Row],[Datos para txt]])","v":0}]
[null,null,null,null,{"$f":"rellenar(Tabla1[[#This Row],[Beneficio]],Tabla1[[#This Row],[Cédula]],Tabla1[[#This Row],[Monto]])","v":""},{"$f":"LEN(Tabla1[[#This Row],[Datos para txt]])","v":0}]
[null,null,null,null,{"$f":"rellenar(Tabla1[[#This Row],[Beneficio]],Tabla1[[#This Row],[Cédula]],Tabla1[[#This Row],[Monto]])","v":""},{"$f":"LEN(Tabla1[[#This Row],[Datos para txt]])","v":0}]
[null,null,null,null,{"$f":"rellenar(Tabla1[[#This Row],[Beneficio]],Tabla1[[#This Row],[Cédula]],Tabla1[[#This Row],[Monto]])","v":""},{"$f":"LEN(Tabla1[[#This Row],[Datos para txt]])","v":0}]
[null,null,null,null,{"$f":"rellenar(Tabla1[[#This Row],[Beneficio]],Tabla1[[#This Row],[Cédula]],Tabla1[[#This Row],[Monto]])","v":""},{"$f":"LEN(Tabla1[[#This Row],[Datos para txt]])","v":0}]
[null,null,null,null,{"$f":"rellenar(Tabla1[[#This Row],[Beneficio]],Tabla1[[#This Row],[Cédula]],Tabla1[[#This Row],[Monto]])","v":""},{"$f":"LEN(Tabla1[[#This Row],[Datos para txt]])","v":0}]
[null,null,null,null,{"$f":"rellenar(Tabla1[[#This Row],[Beneficio]],Tabla1[[#This Row],[Cédula]],Tabla1[[#This Row],[Monto]])","v":""},{"$f":"LEN(Tabla1[[#This Row],[Datos para txt]])","v":0}]
[null,null,null,null,{"$f":"rellenar(Tabla1[[#This Row],[Beneficio]],Tabla1[[#This Row],[Cédula]],Tabla1[[#This Row],[Monto]])","v":""},{"$f":"LEN(Tabla1[[#This Row],[Datos para txt]])","v":0}]
[null,null,null,null,{"$f":"rellenar(Tabla1[[#This Row],[Beneficio]],Tabla1[[#This Row],[Cédula]],Tabla1[[#This Row],[Monto]])","v":""},{"$f":"LEN(Tabla1[[#This Row],[Datos para txt]])","v":0}]
[null,null,null,null,{"$f":"rellenar(Tabla1[[#This Row],[Beneficio]],Tabla1[[#This Row],[Cédula]],Tabla1[[#This Row],[Monto]])","v":""},{"$f":"LEN(Tabla1[[#This Row],[Datos para txt]])","v":0}]
[null,null,null,null,{"$f":"rellenar(Tabla1[[#This Row],[Beneficio]],Tabla1[[#This Row],[Cédula]],Tabla1[[#This Row],[Monto]])","v":""},{"$f":"LEN(Tabla1[[#This Row],[Datos para txt]])","v":0}]
[null,null,null,null,{"$f":"rellenar(Tabla1[[#This Row],[Beneficio]],Tabla1[[#This Row],[Cédula]],Tabla1[[#This Row],[Monto]])","v":""},{"$f":"LEN(Tabla1[[#This Row],[Datos para txt]])","v":0}]
[null,null,null,null,{"$f":"rellenar(Tabla1[[#This Row],[Beneficio]],Tabla1[[#This Row],[Cédula]],Tabla1[[#This Row],[Monto]])","v":""},{"$f":"LEN(Tabla1[[#This Row],[Datos para txt]])","v":0}]

{"sheet":"Hoja2","index":1,"n_rows":0,"n_cols":0,"rows_kept":0,"cut":false,"hidden":false,"merged":[]}

{"sheet":"Hoja3","index":2,"n_rows":0,"n_cols":0,"rows_kept":0,"cut":false,"hidden":false,"merged":[]}